Workbook

Sheet Carbon Calculator (EN)
A1: NHS WALES SHARED SERVICES PARTNERSHIP - PROCUREMENT SERVICES
A3: Supply Chain Carbon Calculator 24-25
A5: Instructions
A6: Colleagues can utilise this document to calculate their Supply Chain Carbon Footprint.
A7: Colleagues need to add the supplier name and appropriate spend to Columns A and B respectively and utilise the outputs of Column F as the associated Supply Chain Carbon Emissions.
A8: Colleagues will need to ensure the supplier name matches the supplier name within our Financial Management System to ensure automation of this calculator.
A9: Colleagues should note that this calculator is for illustrative purposes only and that due to ongoing reporting improvement should be updated each financial year.
A11: Exclusions
A12: Please note that intra NHS spend, Anaesthetic Gases, Utilities, Waste, and Expenses related carbon emissions are excluded from this calculator.
A14: Personnel
A15: For further information please contact:
A17: Name | B17: Role | C17: Email Address | F17: Contact Type
A18: Daniel Gregory | B18: Foundational Economy Manager | C18: Daniel.Gregory@wales.nhs.uk | F18: Primary
A19: Aled Guy | B19: Head of Sustainability and Net Zero Carbon Management | C19: Aled.Guy@wales.nhs.uk | F19: Escalation
A21: Links
A22: This calculator aligns with the current Welsh Public Sector Net Zero reporting guide and reporting spreadsheet.
A23: Public sector net zero reporting guide | GOV.WALES
A25: Carbon Calculator
A27: Supplier Name | B27: Spend | C27: T1 EF | D27: T2 EF | E27: Combined EF (KG CO2e) | F27: Emissions from Spend (KG CO2e)
C28: =VLOOKUP(A28,'Master List'!$A$1:$Q$25000,17,FALSE) ->  | D28: =VLOOKUP(A28,'Master List'!$A$1:$X$25000,24,FALSE) ->  | E28: =IF(D28<=0.000001,C28,D28) ->  | F28: =E28*B28 -> 
C29: =VLOOKUP(A29,'Master List'!$A$1:$Q$25000,17,FALSE) ->  | D29: =VLOOKUP(A29,'Master List'!$A$1:$X$25000,24,FALSE) ->  | E29: =IF(D29<=0.000001,C29,D29) ->  | F29: =E29*B29 -> 
C30: =VLOOKUP(A30,'Master List'!$A$1:$Q$25000,17,FALSE) ->  | D30: =VLOOKUP(A30,'Master List'!$A$1:$X$25000,24,FALSE) -> 
C31: =VLOOKUP(A31,'Master List'!$A$1:$Q$25000,17,FALSE) ->  | D31: =VLOOKUP(A31,'Master List'!$A$1:$X$25000,24,FALSE) -> 
C32: =VLOOKUP(A32,'Master List'!$A$1:$Q$25000,17,FALSE) ->  | D32: =VLOOKUP(A32,'Master List'!$A$1:$X$25000,24,FALSE) -> 
C33: =VLOOKUP(A33,'Master List'!$A$1:$Q$25000,17,FALSE) ->  | D33: =VLOOKUP(A33,'Master List'!$A$1:$X$25000,24,FALSE) -> 
C34: =VLOOKUP(A34,'Master List'!$A$1:$Q$25000,17,FALSE) ->  | D34: =VLOOKUP(A34,'Master List'!$A$1:$X$25000,24,FALSE) -> 
C35: =VLOOKUP(A35,'Master List'!$A$1:$Q$25000,17,FALSE) ->  | D35: =VLOOKUP(A35,'Master List'!$A$1:$X$25000,24,FALSE) -> 
C36: =VLOOKUP(A36,'Master List'!$A$1:$Q$25000,17,FALSE) ->  | D36: =VLOOKUP(A36,'Master List'!$A$1:$X$25000,24,FALSE) -> 
C37: =VLOOKUP(A37,'Master List'!$A$1:$Q$25000,17,FALSE) ->  | D37: =VLOOKUP(A37,'Master List'!$A$1:$X$25000,24,FALSE) -> 

Sheet FE Calculator (EN)
A1: NHS WALES SHARED SERVICES PARTNERSHIP - PROCUREMENT SERVICES
A3: Supply Chain Foundational Economy Calculator 24-25
A5: Instructions
A6: Colleagues can utilise this document to calculate their Supply Chain Foundational Economy Spend, spend within specific regions and spend with specific Health Board geographical footprint(s).
A7: Colleagues need to add the supplier name and appropriate spend to Columns A and B respectively and utilise the outputs of Column F, G and H as the associated Foundational Economy spend, spend within region(s) and spend within specific Health Board geographical footprint(s)
A8: Colleagues will need to ensure the supplier name matches the supplier name within our Financial Management System to ensure automation of this calculator.
A9: Colleagues should note that this calculator is for illustrative purposes and may not include suppliers who are new to NHS Wales.
A11: Exclusions and notes
A12: Please note that the Foundational Economy spend relates to the head quarters of the supply organisation or where the monetary value of projects is retained.
A13: Furthermore for clarity the below map outlines the specific regions of Wales aligned to this reporting
A28: Personnel
A29: For further information please contact:
A31: Name | B31: Role | C31: Email Address | F31: Contact Type
A32: Daniel Gregory | B32: Foundational Economy Manager | C32: Daniel.Gregory@wales.nhs.uk | F32: Primary
A33: Aled Guy | B33: Head of Sustainability and Net Zero Carbon Management | C33: Aled.Guy@wales.nhs.uk | F33: Escalation
A35: Foundational Economy Calculator
A37: Supplier Name | B37: Spend | C37: HQ Location - Welsh (Y/N) | D37: HQ Locaion - Region | E37: HQ Location - Health Board or Trust | F37: Foundational Economy Spend
C38: =VLOOKUP(A38,'Master List'!$A$1:$Q$25000,4,FALSE) ->  | D38: =VLOOKUP(A38,'Master List'!$A$1:$Q$25000,11,FALSE) ->  | E38: =VLOOKUP(A38,'Master List'!$A$1:$Q$25000,12,FALSE) ->  | F38: =VLOOKUP(A38,'Master List'!$A$1:$Q$25000,3,FALSE)*B38 -> 
C39: =VLOOKUP(A39,'Master List'!$A$1:$Q$25000,4,FALSE) ->  | D39: =VLOOKUP(A39,'Master List'!$A$1:$Q$25000,11,FALSE) ->  | E39: =VLOOKUP(A39,'Master List'!$A$1:$Q$25000,12,FALSE) ->  | F39: =VLOOKUP(A39,'Master List'!$A$1:$Q$25000,3,FALSE)*B39 -> 
C40: =VLOOKUP(A40,'Master List'!$A$1:$Q$25000,4,FALSE) ->  | D40: =VLOOKUP(A40,'Master List'!$A$1:$Q$25000,11,FALSE) ->  | E40: =VLOOKUP(A40,'Master List'!$A$1:$Q$25000,12,FALSE) ->  | F40: =VLOOKUP(A40,'Master List'!$A$1:$Q$25000,3,FALSE)*B40 -> 
C41: =VLOOKUP(A41,'Master List'!$A$1:$Q$25000,4,FALSE) ->  | D41: =VLOOKUP(A41,'Master List'!$A$1:$Q$25000,11,FALSE) ->  | E41: =VLOOKUP(A41,'Master List'!$A$1:$Q$25000,12,FALSE) ->  | F41: =VLOOKUP(A41,'Master List'!$A$1:$Q$25000,3,FALSE)*B41 -> 
C42: =VLOOKUP(A42,'Master List'!$A$1:$Q$25000,4,FALSE) ->  | D42: =VLOOKUP(A42,'Master List'!$A$1:$Q$25000,11,FALSE) ->  | E42: =VLOOKUP(A42,'Master List'!$A$1:$Q$25000,12,FALSE) ->  | F42: =VLOOKUP(A42,'Master List'!$A$1:$Q$25000,3,FALSE)*B42 -> 
C43: =VLOOKUP(A43,'Master List'!$A$1:$Q$25000,4,FALSE) ->  | D43: =VLOOKUP(A43,'Master List'!$A$1:$Q$25000,11,FALSE) ->  | E43: =VLOOKUP(A43,'Master List'!$A$1:$Q$25000,12,FALSE) ->  | F43: =VLOOKUP(A43,'Master List'!$A$1:$Q$25000,3,FALSE)*B43 -> 
C44: =VLOOKUP(A44,'Master List'!$A$1:$Q$25000,4,FALSE) ->  | D44: =VLOOKUP(A44,'Master List'!$A$1:$Q$25000,11,FALSE) ->  | E44: =VLOOKUP(A44,'Master List'!$A$1:$Q$25000,12,FALSE) ->  | F44: =VLOOKUP(A44,'Master List'!$A$1:$Q$25000,3,FALSE)*B44 -> 
C45: =VLOOKUP(A45,'Master List'!$A$1:$Q$25000,4,FALSE) ->  | D45: =VLOOKUP(A45,'Master List'!$A$1:$Q$25000,11,FALSE) ->  | E45: =VLOOKUP(A45,'Master List'!$A$1:$Q$25000,12,FALSE) ->  | F45: =VLOOKUP(A45,'Master List'!$A$1:$Q$25000,3,FALSE)*B45 -> 
C46: =VLOOKUP(A46,'Master List'!$A$1:$Q$25000,4,FALSE) ->  | D46: =VLOOKUP(A46,'Master List'!$A$1:$Q$25000,11,FALSE) ->  | E46: =VLOOKUP(A46,'Master List'!$A$1:$Q$25000,12,FALSE) ->  | F46: =VLOOKUP(A46,'Master List'!$A$1:$Q$25000,3,FALSE)*B46 -> 
C47: =VLOOKUP(A47,'Master List'!$A$1:$Q$25000,4,FALSE) ->  | D47: =VLOOKUP(A47,'Master List'!$A$1:$Q$25000,11,FALSE) ->  | E47: =VLOOKUP(A47,'Master List'!$A$1:$Q$25000,12,FALSE) ->  | F47: =VLOOKUP(A47,'Master List'!$A$1:$Q$25000,3,FALSE)*B47 -> 

Sheet Carbon Calculator (CY)
A1: PARTNERIAETH CYDWASANAETHAU GIG CYMRU - GWASANAETHAU CAFFAEL
A3: Cyfrifiannell Carbon y Gadwyn Gyflenwi 24-25
A5: Cyfarwyddiadau
A6: Gall cydweithwyr ddefnyddio'r ddogfen hon i gyfrifo eu Hôl Troed Carbon yn y Gadwyn Gyflenwi.
A7: Mae angen i gydweithwyr ychwanegu enw'r cyflenwr a'r gwariant priodol yn Ngholofnau A a B yn y drefn honno a defnyddio allbynnau Colofn F fel yr Allyriadau Carbon Cadwyn Cyflenwi cysylltiedig.
A8: Bydd angen i gydweithwyr sicrhau bod enw’r cyflenwr yn cyfateb i enw’r cyflenwr yn ein System Rheoli Ariannol er mwyn sicrhau bod y gyfrifiannell hon yn cael ei awtomeiddio.
A9: Dylai cydweithwyr gadw mewn cof bod y gyfrifiannell hon at ddibenion enghreifftiol yn unig a dylid ei diweddaru bob blwyddyn ariannol oherwydd gwelliannau adrodd parhaus.
A11: Eithriadau
A12: Sylwch fod gwariant o fewn y GIG, Nwyon Anesthetig, Cyfleustodau, Gwastraff, ac allyriadau carbon yn ymwneud â Threuliau wedi'u heithrio o'r gyfrifiannell hon.
A14: Personél
A15: I gael gwybodaeth bellach, cysylltwch â:
A17: Enw | B17: Rôl | C17: Cyfeiriad E-bost | F17: Math o Gontract
A18: Daniel Gregory | B18: Rheolwr Yr Economi Sylfaenol | C18: Daniel.Gregory@wales.nhs.uk | F18: Sylfaenol
A19: Aled Guy | B19: Pennaeth Cynaliadwyedd a Rheoli Carbon Sero Net | C19: Aled.Guy@wales.nhs.uk | F19: Uwchgyfeirio
A21: Dolenni
A22: Mae'r gyfrifiannell hon yn cyd-fynd â chanllaw adrodd a thaenlen adrodd Sero Net Sector Cyhoeddus Cymru ar hyn o bryd.
A23: Canllaw sector cyhoeddus ar gyfer adrodd ar garbon sero-net | LLYW.CYMRU
A25: Cyfrifiannell Carbon
A27: Enw'r Cyflenwr | B27: Gwariant | C27: Ffactor Allyriadau Haen 1 | D27: Ffactor Allyriadau Haen 2 | E27: Ffactor Allyriadau Cyfun (KG CO2e) | F27: Allyriadau o Wariant (KG CO2e)
C28: =VLOOKUP(A28,'Master List'!$A$1:$Q$25000,16,FALSE) ->  | D28: =VLOOKUP(A28,'Master List'!$A$1:$X$25000,23,FALSE) ->  | E28: =IF(D28<=0.000001,C28,D28) ->  | F28: =E28*B28 -> 
C29: =VLOOKUP(A29,'Master List'!$A$1:$Q$25000,17,FALSE) ->  | D29: =VLOOKUP(A29,'Master List'!$A$1:$X$25000,24,FALSE) -> 
C30: =VLOOKUP(A30,'Master List'!$A$1:$Q$25000,17,FALSE) ->  | D30: =VLOOKUP(A30,'Master List'!$A$1:$X$25000,24,FALSE) -> 
C31: =VLOOKUP(A31,'Master List'!$A$1:$Q$25000,17,FALSE) ->  | D31: =VLOOKUP(A31,'Master List'!$A$1:$X$25000,24,FALSE) -> 
C32: =VLOOKUP(A32,'Master List'!$A$1:$Q$25000,17,FALSE) ->  | D32: =VLOOKUP(A32,'Master List'!$A$1:$X$25000,24,FALSE) -> 
C33: =VLOOKUP(A33,'Master List'!$A$1:$Q$25000,17,FALSE) ->  | D33: =VLOOKUP(A33,'Master List'!$A$1:$X$25000,24,FALSE) -> 
C34: =VLOOKUP(A34,'Master List'!$A$1:$Q$25000,17,FALSE) ->  | D34: =VLOOKUP(A34,'Master List'!$A$1:$X$25000,24,FALSE) -> 
C35: =VLOOKUP(A35,'Master List'!$A$1:$Q$25000,17,FALSE) ->  | D35: =VLOOKUP(A35,'Master List'!$A$1:$X$25000,24,FALSE) -> 
C36: =VLOOKUP(A36,'Master List'!$A$1:$Q$25000,17,FALSE) ->  | D36: =VLOOKUP(A36,'Master List'!$A$1:$X$25000,24,FALSE) -> 
C37: =VLOOKUP(A37,'Master List'!$A$1:$Q$25000,17,FALSE) ->  | D37: =VLOOKUP(A37,'Master List'!$A$1:$X$25000,24,FALSE) -> 

Sheet FE Calculator (CY)
A1: NHS WALES SHARED SERVICES PARTNERSHIP - PROCUREMENT SERVICES
A3: Supply Chain Foundational Economy Calculator 24-25
A5: Instructions
A6: Colleagues can utilise this document to calculate their Supply Chain Foundational Economy Spend, spend within specific regions and spend with specific Health Board geographical footprint(s).
A7: Colleagues need to add the supplier name and appropriate spend to Columns A and B respectively and utilise the outputs of Column F, G and H as the associated Foundational Economy spend, spend within region(s) and spend within specific Health Board geographical footprint(s)
A8: Colleagues will need to ensure the supplier name matches the supplier name within our Financial Management System to ensure automation of this calculator.
A9: Colleagues should note that this calculator is for illustrative purposes and may not include suppliers who are new to NHS Wales.
A11: Exclusions and notes
A12: Please note that the Foundational Economy spend relates to the head quarters of the supply organisation or where the monetary value of projects is retained.
A13: Furthermore for clarity the below map outlines the specific regions of Wales aligned to this reporting
A28: Personél
A29: Am ragor o wybodaeth cysylltwch â:
A31: Enw | B31: Rôl | C31: Cyfeiriad e-bost | F31: Math o Gyswllt
A32: Daniel Gregory | B32: Foundational Economy Manager | C32: Daniel.Gregory@wales.nhs.uk | F32: Prif
A33: Aled Guy | B33: Head of Sustainability and Net Zero Carbon Management | C33: Aled.Guy@wales.nhs.uk | F33: Uwchgyfeirio
A35: Cyfrifiannell yr Economi Sylfaenol
A37: Enw'r Cyflenwr | B37: Gwariant | C37: Lleoliad Pencadlys - Cymru (Ie/Na) | D37: Lleoliad Pencadlys - Rhanbarth | E37: Lleoliad y Pencadlys - Bwrdd Iechyd neu Ymddiriedolaeth | F37: Gwariant ar yr Economi Sylfaenol
C38: =VLOOKUP(A38,'Master List'!$A$1:$Q$25000,4,FALSE) ->  | D38: =VLOOKUP(A38,'Master List'!$A$1:$Q$25000,11,FALSE) ->  | E38: =VLOOKUP(A38,'Master List'!$A$1:$Q$25000,12,FALSE) ->  | F38: =VLOOKUP(A38,'Master List'!$A$1:$Q$25000,3,FALSE)*B38 -> 
C39: =VLOOKUP(A39,'Master List'!$A$1:$Q$25000,4,FALSE) ->  | D39: =VLOOKUP(A39,'Master List'!$A$1:$Q$25000,11,FALSE) ->  | E39: =VLOOKUP(A39,'Master List'!$A$1:$Q$25000,12,FALSE) ->  | F39: =VLOOKUP(A39,'Master List'!$A$1:$Q$25000,3,FALSE)*B39 -> 
C40: =VLOOKUP(A40,'Master List'!$A$1:$Q$25000,4,FALSE) ->  | D40: =VLOOKUP(A40,'Master List'!$A$1:$Q$25000,11,FALSE) ->  | E40: =VLOOKUP(A40,'Master List'!$A$1:$Q$25000,12,FALSE) ->  | F40: =VLOOKUP(A40,'Master List'!$A$1:$Q$25000,3,FALSE)*B40 -> 
C41: =VLOOKUP(A41,'Master List'!$A$1:$Q$25000,4,FALSE) ->  | D41: =VLOOKUP(A41,'Master List'!$A$1:$Q$25000,11,FALSE) ->  | E41: =VLOOKUP(A41,'Master List'!$A$1:$Q$25000,12,FALSE) ->  | F41: =VLOOKUP(A41,'Master List'!$A$1:$Q$25000,3,FALSE)*B41 -> 
C42: =VLOOKUP(A42,'Master List'!$A$1:$Q$25000,4,FALSE) ->  | D42: =VLOOKUP(A42,'Master List'!$A$1:$Q$25000,11,FALSE) ->  | E42: =VLOOKUP(A42,'Master List'!$A$1:$Q$25000,12,FALSE) ->  | F42: =VLOOKUP(A42,'Master List'!$A$1:$Q$25000,3,FALSE)*B42 -> 
C43: =VLOOKUP(A43,'Master List'!$A$1:$Q$25000,4,FALSE) ->  | D43: =VLOOKUP(A43,'Master List'!$A$1:$Q$25000,11,FALSE) ->  | E43: =VLOOKUP(A43,'Master List'!$A$1:$Q$25000,12,FALSE) ->  | F43: =VLOOKUP(A43,'Master List'!$A$1:$Q$25000,3,FALSE)*B43 -> 
C44: =VLOOKUP(A44,'Master List'!$A$1:$Q$25000,4,FALSE) ->  | D44: =VLOOKUP(A44,'Master List'!$A$1:$Q$25000,11,FALSE) ->  | E44: =VLOOKUP(A44,'Master List'!$A$1:$Q$25000,12,FALSE) ->  | F44: =VLOOKUP(A44,'Master List'!$A$1:$Q$25000,3,FALSE)*B44 -> 
C45: =VLOOKUP(A45,'Master List'!$A$1:$Q$25000,4,FALSE) ->  | D45: =VLOOKUP(A45,'Master List'!$A$1:$Q$25000,11,FALSE) ->  | E45: =VLOOKUP(A45,'Master List'!$A$1:$Q$25000,12,FALSE) ->  | F45: =VLOOKUP(A45,'Master List'!$A$1:$Q$25000,3,FALSE)*B45 -> 
C46: =VLOOKUP(A46,'Master List'!$A$1:$Q$25000,4,FALSE) ->  | D46: =VLOOKUP(A46,'Master List'!$A$1:$Q$25000,11,FALSE) ->  | E46: =VLOOKUP(A46,'Master List'!$A$1:$Q$25000,12,FALSE) ->  | F46: =VLOOKUP(A46,'Master List'!$A$1:$Q$25000,3,FALSE)*B46 -> 
C47: =VLOOKUP(A47,'Master List'!$A$1:$Q$25000,4,FALSE) ->  | D47: =VLOOKUP(A47,'Master List'!$A$1:$Q$25000,11,FALSE) ->  | E47: =VLOOKUP(A47,'Master List'!$A$1:$Q$25000,12,FALSE) ->  | F47: =VLOOKUP(A47,'Master List'!$A$1:$Q$25000,3,FALSE)*B47 -> 

Sheet Master List (hidden)
A1: Supplier Name | B1: Supplier Number | C1: Welsh 0/1 | D1: WELSH Corrected | E1: System Welsh | F1: Amendment? | G1: Nation | H1: SME | I1: Sector | J1: HQ Postcode | K1: WG Region | L1: LHB Region | M1: Supplier Site | N1: SIC Long Code | O1: SIC Short Code | P1: SIC Description | Q1: Emmissions Factor Tier 1 | R1: Period of CRP (Calander / Financial Year / Other) | S1: Scope 1 Emissions (KGCO2e) | T1: Scope 2 Emissions (KGCO2e) | U1: Scope 3 Emissions (KGCO2e) | V1: Total Emissions (KGCo2e) | W1: Turnover (£) | X1: Emmissions Factor Tier 2 | Y1: Notes | Z1: Revised 22-23 Value | AA1: 1 | AB1: 2 | AC1: Net Zero reporting Position (Supplier List) | AD1: Net Zero reporting Position (Master Supplier List)
A2: 5 BOROUGHS PARTNERSHIP NHS TRUST | B2: 5395 | C2: 0 | G2: GB | H2: N | I2: PUBLIC SECTOR | J2: WF3 1WE | M2: WAKEFIELD WF3 | N2: 0 | O2: 0 | P2: 0 | Z2: 0 | AC2: =VLOOKUP(A2,'[1]Update Sheet'!$A$3:$Y$15578,25,FALSE) ->  | AD2: Exclude- Intra NHS
A3: PURPLE SURGICAL UK LTD | B3: 84 | D3: N | E3: N | F3: TRUE | G3: GB | H3: N | I3: PRIVATE SECTOR | J3: WD7 9AD | M3: PHARMACY | N3: 46460 | O3: 46 | P3: Wholesale trade services, except of motor vehicles and motorcycles | Q3: 0.02031003151 | Z3: 266404.38 | AA3: * | AC3: =VLOOKUP(A3,'[1]Update Sheet'!$A$3:$Y$15578,25,FALSE) -> 0 | AD3: Reportable
A4: AIREDALE NHS FOUNDATION TRUST | B4: 47888 | C4: 0 | G4: GB | H4: N | I4: PUBLIC SECTOR | J4: BD20 6TD | M4: KEIGHLEY BD20 | Z4: 2916.73 | AA4: * | AC4: =VLOOKUP(A4,'[1]Update Sheet'!$A$3:$Y$15578,25,FALSE) -> Public Sector- Exclude | AD4: Exclude- Intra NHS
A5: AIREDALE NHST | B5: 38449 | C5: 0 | G5: GB | H5: N | I5: PUBLIC SECTOR | J5: BD20 6TD | M5: KEIGHLEY BD20 | Z5: 23089.91 | AA5: * | AC5: =VLOOKUP(A5,'[1]Update Sheet'!$A$3:$Y$15578,25,FALSE) -> Public Sector- Exclude | AD5: Exclude- Intra NHS
A6: BOOTS UK LTD | B6: 5291 | D6: N | E6: N | F6: TRUE | G6: GB | H6: N | I6: PRIVATE SECTOR | J6: NG2 3AA | M6: PCS PAY | N6: 47730 | O6: 47 | P6: Retail trade services, except of motor vehicles and motorcycles | Q6: 0.1740428731 | R6: 2022 | S6: 79136000 | T6: 42708000 | U6: 1026131000 | V6: 1147975000 | W6: 6512000000 | X6: 0.1762860872 | Y6: Boots UK Limited Used | Z6: 107398136.5 | AA6: * | AC6: =VLOOKUP(A6,'[1]Update Sheet'!$A$3:$Y$15578,25,FALSE) -> Review as T2 higher than T1 | AD6: Reportable
A7: BESTWAY NATIONAL CHEMISTS LTD | B7: 55733 | D7: N | E7: N | F7: TRUE | G7: GB | H7: N | I7: PRIVATE SECTOR | J7: M3 4LZ | M7: PCS PAY | N7: 47730 | O7: 47 | P7: Retail trade services, except of motor vehicles and motorcycles | Q7: 0.1740428731 | Y7: No data available | Z7: 106082724.7 | AA7: * | AC7: =VLOOKUP(A7,'[1]Update Sheet'!$A$3:$Y$15578,25,FALSE) -> 0 | AD7: Reportable
A8: ALDERHEY CHILDRENS HOSPITAL | B8: 6714 | C8: 0 | G8: GB | H8: N | I8: PUBLIC SECTOR | J8: L12 2AP | M8: LIVERPOOL L12 | N8: 0 | O8: 0 | P8: 0 | Z8: 23799376.69 | AA8: * | AC8: =VLOOKUP(A8,'[1]Update Sheet'!$A$3:$Y$15578,25,FALSE) -> Public Sector- Exclude | AD8: Exclude- Intra NHS
A9: AMB PETTY CASH | B9: 31560 | C9: 1 | G9: GB | H9: N | I9: PUBLIC SECTOR | J9: SA7 9EH | M9: FACTORTHANET | N9: 0 | O9: 0 | P9: 0 | Z9: 0 | AC9: =VLOOKUP(A9,'[1]Update Sheet'!$A$3:$Y$15578,25,FALSE) -> Public Sector- Exclude | AD9: N/A - Not Used for 23-24
A10: SCIENSUS PHARMA SERVICES LTD | B10: 3293 | D10: N | E10: N | F10: TRUE | G10: GB | H10: N | I10: PRIVATE SECTOR | J10: DE14 1SZ | M10: PHARMACY | N10: 21200 | O10: 21 | P10: Basic pharmaceutical products and pharmaceutical preparations | Q10: 0.6209951816 | R10: 22-23 | S10: 6842000 | T10: 713000 | U10: 149000 | V10: 7704000 | W10: 1647474000 | X10: 0.004676249822 | Y10: https://s3.eu-west-2.amazonaws.com/document-api-images-live.ch.gov.uk/docs/gWKfbmpCtrXwPs6wgp5yMdn0gSpkC1HRH8eTJaksDNM/application-pdf?X-Amz-Algorithm=AWS4-HMAC-SHA256&X-Amz-Credential=ASIAWRGBDBV3FRSUTUYH%2F20240214%2Feu-west-2%2Fs3%2Faws4_request&X-Amz-Date=20240214T102303Z&X-Amz-Expires=60&X-Amz-Security-Token=IQoJb3JpZ2luX2VjELH%2F%2F%2F%2F%2F%2F%2F%2F%2F%2FwEaCWV1LXdlc3QtMiJHMEUCIB4o8JsoxhxliqMUXEqPmymPgHJiuCJMaBdIF4Rs8uxpAiEA6RKX7DB%2Fo1yVPFWxbYmRPSKUjhdiGmAZggKKlHORr6YqxAUIif%2F%2F%2F%2F%2F%2F%2F%2F%2F%2FARAEGgw0NDkyMjkwMzI4MjIiDDBmkUb7uM1zPTXu4SqYBUmAcgLfXpLV%2F3Hlzoj08kmWX8j8CXmGYjfUJzr4iGwSXTR2IjFubL%2Fxzg0kkpPiMA%2Fd1mP1rK%2FURaFN4V%2BdZN97c3BXDJKZ7Wc7PZblB5oBptAPGAkg2NlY20gn1gLuIJfK8WW45uwr6pLb4VPKVU2k4uFL5ikfkStj3h6kCzT%2Fhs3pthEaLyyQSG5vAYbGbhGUYS6dZ2pTSzFF6dQQjKk8RW5rhGrLRiw3cw%2FJHJiFaUWRCOxICddU9duhoS6hbIvyhq5JlWfPRzrMiHXSNOiN8lALvVhyWNJ4MoIpBUSe6SIiZiyd21nMbEVYXkRPazYF9itomNJb67tzVTlqTaoGcAzdc6EV545sXQ1b%2FysUpgbYOD0ngcfXo1D1U0Eg0FiYwGbFaoXqzDgjlhHp60Te%2BjoWqxyJc8PKrFuPvZXm7bRxWGrHdjP8L2LypvkHDR1%2BA3d7fH4srdEmkRXpHoEJDJfjSpEvSJcHL3TR3GGLrO0AMlrk%2BFDXaNAw2URWVZAy1vfQkCJVISfTKGjn%2F3frDQyZ0DPgUZD6%2BGXRMfIb79%2F4tlYz5cMO4lbJKuuFLNRV%2FjUBA1W0CYy3ojRZ9zA%2FDqRU6pYMSMRGhvCR086WfrKX815DCpoXXg7de9CfsLrxehP9DRgdro2jvqU5O7SDjH5jalRkj3Q0N8L2X9lJGu%2B63Tp1iZ5Gt074urcg%2FIqeAI9swd5spgzD8ZGSiPMcCv36wlcKPxOJ0xPoW5cN7XVCJY2pBpae8j%2FlZaVY24b2JPt8CQbcl6t67WBv4lDLlZ52oPibXy%2F68pgtBrqij%2B9U2OPXinlIcdam8ZM01PkCKOqiGCJ%2BRanO4KNY3GwL6OKIWBnVddFJY%2Fk7%2Fykq%2B4hp8EejLQcwn%2B%2BxrgY6sQEcyGQ0vEkuKNxTMYFcKl742p2hiw0QCi5oB5qhGOSFGO55LetsAtFbu%2BpGHdEyOiDH3Urf%2Bu3%2FFnn3TeSfSsJavnjb%2B4eThuwRqXtun54lcrbyh1Gvx0qvUELn1r9jIc9E5wHNTq%2FJUBqESMGDXDYM6aXvuYN0kmnCUv45Pw3RtL%2BrZJwKHpLRvYEgXMu%2BdiNVd7KkDVnD32QSScLCez6sCHVJObXtuE1dbHGXfIi8Oa8%3D&X-Amz-SignedHeaders=host&response-content-disposition=inline%3Bfilename%3D%22companies_house_document.pdf%22&X-Amz-Signature=ca5be549588434eadd87f224fdd64f40243a5ccfa73b708241c5c72a6709b6d5 | Z10: 86425890.67 | AA10: * | AC10: =VLOOKUP(A10,'[1]Update Sheet'!$A$3:$Y$15578,25,FALSE) -> In Master List | AD10: Reportable
A11: ANEURIN BEVAN UNIVERSITY HEALTH BOARD | B11: 2832 | C11: 1 | G11: GB | H11: N | I11: PUBLIC SECTOR | J11: NP44 8YN | M11: CWMBRAN NP44 | Z11: 40804583.69 | AA11: * | AC11: =VLOOKUP(A11,'[1]Update Sheet'!$A$3:$Y$15578,25,FALSE) -> Public Sector- Exclude | AD11: Exclude- Intra NHS
A12: NHS SUPPLY CHAIN | B12: 662 | D12: N | E12: N | F12: TRUE | G12: GB | H12: N | I12: PUBLIC SECTOR | J12: TA6 4RN | M12: PHARMACY | N12: 86101 | O12: 86 | P12: Human health services | Q12: 0.2919316862 | Y12: No data available | Z12: 65839837.02 | AA12: * | AC12: =VLOOKUP(A12,'[1]Update Sheet'!$A$3:$Y$15578,25,FALSE) -> 0 | AD12: Reportable
A13: BRITISH GAS BUSINESS | B13: 26850 | D13: N | E13: N | F13: TRUE | G13: GB | H13: N | I13: PRIVATE SECTOR | J13: GU15 3WA | M13: CAMBERLEY GU95 | N13: 35140 | O13: 35.1 | P13: Electricity, transmission and distribution | Q13: 1.881537182 | Z13: 60617961.55 | AA13: * | AC13: =VLOOKUP(A13,'[1]Update Sheet'!$A$3:$Y$15578,25,FALSE) -> Do not include in master list- EFPMS | AD13: Exclude- Captured under Waste, Energy, Water or Invesments
A14: AVICENNA RETAIL LTD | B14: 71825 | D14: N | E14: Y | F14: Removal of a False Welsh Supplier | G14: GB | H14: N | I14: PRIVATE SECTOR | J14: CR2 8LD | M14: PCS PAY | N14: 47730 | O14: 47 | P14: Retail trade services, except of motor vehicles and motorcycles | Q14: 0.1740428731 | Z14: 56859858.32 | AA14: * | AC14: =VLOOKUP(A14,'[1]Update Sheet'!$A$3:$Y$15578,25,FALSE) -> 0 | AD14: Reportable
A15: L ROWLAND & CO | B15: 5024 | D15: N | E15: N | F15: TRUE | G15: GB | H15: N | I15: PRIVATE SECTOR | M15: PCS PAY | N15: 47730 | O15: 47 | P15: Retail trade services, except of motor vehicles and motorcycles | Q15: 0.1740428731 | Z15: 56089270.91 | AA15: * | AC15: =VLOOKUP(A15,'[1]Update Sheet'!$A$3:$Y$15578,25,FALSE) -> 0 | AD15: Reportable
A16: ASHFORD & ST PETERS HOSPITALS NHS FOUNDATION TRUST | B16: 7743 | C16: 0 | G16: GB | H16: N | I16: PUBLIC SECTOR | M16: WAKEFIELD WF3 | Z16: 222949.36 | AA16: * | AC16: =VLOOKUP(A16,'[1]Update Sheet'!$A$3:$Y$15578,25,FALSE) -> Public Sector- Exclude | AD16: Exclude- Intra NHS
A17: CARDIFF COUNCIL | B17: 6310 | C17: 1 | D17: Y | E17: Y | F17: TRUE | G17: GB | H17: N | I17: PUBLIC SECTOR | J17: CF10 3ND | K17: South East Wales | L17: Cardiff and Vale UHB | M17: CARDIFF CF10 | N17: 84110 | O17: 84 | P17: Public administration and defence services; compulsory social security services | Q17: 0.1703405261 | Z17: 52893632.73 | AA17: * | AC17: =VLOOKUP(A17,'[1]Update Sheet'!$A$3:$Y$15578,25,FALSE) -> 0 | AD17: Reportable
A18: INTERSERVE CONSTRUCTION LTD – PBA | B18: 69574 | C18: 1 | D18: Y | E18: Y | F18: TRUE | G18: GB | H18: N | I18: PRIVATE SECTOR | J18: SA5 8LT | K18: South West Wales | L18: Swansea Bay UHB | M18: CTM-PCH-M232 | N18: 41201 | O18: 41.2 | P18: Buildings and building construction works | Q18: 0.3050063626 | S18: 1430000 | T18: 475000 | U18: 13635000 | V18: 15540000 | W18: 391993000 | X18: 0.03964356506 | Z18: 52350377.14 | AA18: * | AC18: =VLOOKUP(A18,'[1]Update Sheet'!$A$3:$Y$15578,25,FALSE) -> In Master List | AD18: Reportable
A19: ALLIANCE HEALTHCARE (DISTRIBUTION) LTD | B19: 308 | D19: N | E19: N | F19: TRUE | G19: GB | H19: N | I19: PRIVATE SECTOR | J19: KT9 1SN | M19: PHARMACY | N19: 46460 | O19: 46 | P19: Wholesale trade services, except of motor vehicles and motorcycles | Q19: 0.02031003151 | R19: 2022 | S19: 30118000 | T19: 132000 | U19: 42504000 | V19: 72754000 | W19: 6319000000 | X19: 0.01151353062 | Y19: CRP | Z19: 52331162.72 | AA19: * | AC19: =VLOOKUP(A19,'[1]Update Sheet'!$A$3:$Y$15578,25,FALSE) -> In Master List | AD19: Reportable
A20: AVON & WILTSHIRE MENTAL HEALTH NHS PARTNERSHIPS | B20: 1328 | C20: 0 | G20: GB | H20: N | I20: PUBLIC SECTOR | J20: BA1 3QE | M20: BATH BA1 | N20: 0 | O20: 0 | P20: 0 | Z20: 3046.74 | AA20: * | AC20: =VLOOKUP(A20,'[1]Update Sheet'!$A$3:$Y$15578,25,FALSE) -> Public Sector- Exclude | AD20: Exclude- Intra NHS
A21: AAH PHARMACEUTICALS LTD | B21: 3 | D21: N | E21: N | F21: TRUE | G21: GB | H21: N | I21: PRIVATE SECTOR | J21: CV2 2ZG | M21: PHARMACY | N21: 21100 | O21: 21 | P21: Basic pharmaceutical products and pharmaceutical preparations | Q21: 0.6209951816 | Z21: 47765390.97 | AA21: * | AC21: =VLOOKUP(A21,'[1]Update Sheet'!$A$3:$Y$15578,25,FALSE) -> 0 | AD21: Reportable
A22: KIER CONSTRUCTION LTD | B22: 12033 | C22: 1 | D22: Y | E22: Y | F22: TRUE | G22: GB | H22: N | I22: PRIVATE SECTOR | J22: CF3 0EY | K22: South East Wales | L22: Cardiff and Vale UHB | M22: WESTERN & WALES | N22: 41201 | O22: 41.2 | P22: Buildings and building construction works | Q22: 0.3050063626 | R22: 2022 | S22: 31340000 | T22: 3600000 | U22: 68955000 | V22: 103895000 | W22: 1318930000 | X22: 0.07877218655 | Z22: 44990285.92 | AA22: * | AC22: =VLOOKUP(A22,'[1]Update Sheet'!$A$3:$Y$15578,25,FALSE) -> In Master List | AD22: Reportable
A23: AYRSHIRE & ARRAN HEALTH BOARD | B23: 23407 | C23: 0 | G23: GB | H23: N | I23: PUBLIC SECTOR | J23: KA6 6AB | M23: AYR KA6 | N23: 0 | O23: 0 | P23: 0 | Z23: 13828.73 | AA23: * | AC23: =VLOOKUP(A23,'[1]Update Sheet'!$A$3:$Y$15578,25,FALSE) -> Public Sector- Exclude | AD23: Exclude- Intra NHS
A24: BARKING HAVERING & REDBRIDGE HOSPITALS NHS TRUST | B24: 23941 | C24: 0 | G24: GB | H24: N | I24: PUBLIC SECTOR | M24: WAKEFIELD WF3 | Z24: 720 | AA24: * | AC24: =VLOOKUP(A24,'[1]Update Sheet'!$A$3:$Y$15578,25,FALSE) -> Public Sector- Exclude | AD24: Exclude- Intra NHS
A25: BARNET, ENFIELD AND HARINGEY MENTAL HEALTH NHS TRUST | B25: 65283 | C25: 0 | G25: GB | H25: N | I25: PUBLIC SECTOR | J25: N15 3TH | M25: LONDON N15 | Z25: 0 | AC25: =VLOOKUP(A25,'[1]Update Sheet'!$A$3:$Y$15578,25,FALSE) -> Public Sector- Exclude | AD25: Exclude- Intra NHS
A26: CARDIFF UNIVERSITY | B26: 1523 | C26: 1 | D26: Y | E26: Y | F26: TRUE | G26: GB | H26: N | I26: PUBLIC SECTOR | J26: CF14 4XY | K26: South East Wales | L26: Cardiff and Vale UHB | M26: CARDIFF CF10 | N26: 85421 | O26: 85 | P26: Education services | Q26: 0.1025796668 | Z26: 39917062.58 | AA26: * | AC26: =VLOOKUP(A26,'[1]Update Sheet'!$A$3:$Y$15578,25,FALSE) -> 0 | AD26: Reportable
A27: LLOYDS PHARMACY CLINICAL HOMECARE | B27: 34873 | D27: N | E27: N | F27: TRUE | G27: GB | H27: N | I27: PRIVATE SECTOR | J27: CM19 5GU | M27: PHARMACY | N27: 46460 | O27: 46 | P27: Wholesale trade services, except of motor vehicles and motorcycles | Q27: 0.02031003151 | Z27: 39495705.64 | AA27: * | AC27: =VLOOKUP(A27,'[1]Update Sheet'!$A$3:$Y$15578,25,FALSE) -> 0 | AD27: Reportable
A28: TRUSTMARQUE SOLUTIONS LTD | B28: 4899 | D28: N | E28: N | F28: TRUE | G28: GB | H28: N | I28: PRIVATE SECTOR | J28: YO32 9WN | M28: YORK YO32 | N28: 62020 | O28: 62 | P28: Computer programming, consultancy and related services | Q28: 0.131446597 | R28: 2022 | S28: 33000 | T28: 20000 | U28: 707000 | V28: 760000 | W28: 130378000 | X28: 0.005829204314 | Y28: https://www.trustmarque.com/wp-content/uploads/2023/06/Trustmarque-CRP-24.4.23.pdf | Z28: 39192644.13 | AA28: * | AC28: =VLOOKUP(A28,'[1]Update Sheet'!$A$3:$Y$15578,25,FALSE) -> In Master List | AD28: Reportable
A29: BARNSLEY HOSPITAL NHS FOUNDATION TRUST | B29: 42637 | C29: 0 | G29: GB | H29: N | I29: PUBLIC SECTOR | J29: S75 2EP | M29: BARNSLEY S75 | Z29: 0 | AC29: =VLOOKUP(A29,'[1]Update Sheet'!$A$3:$Y$15578,25,FALSE) -> Public Sector- Exclude | AD29: Exclude- Intra NHS
A30: BARTS HEALTH NHS TRUST | B30: 5128 | C30: 0 | G30: GB | H30: N | I30: PUBLIC SECTOR | J30: E1 8PR | M30: LONDON E1 | Z30: 675067.27 | AA30: * | AC30: =VLOOKUP(A30,'[1]Update Sheet'!$A$3:$Y$15578,25,FALSE) -> Public Sector- Exclude | AD30: Exclude- Intra NHS
A31: RHONDDA CYNON TAFF COUNTY BOROUGH | B31: 5879 | C31: 1 | D31: Y | E31: Y | F31: TRUE | G31: GB | H31: N | I31: PUBLIC SECTOR | J31: CF39 9DL | K31: South East Wales | L31: Cwm Taf Morgannwg UHB | M31: PORTH CF39 | N31: 84110 | O31: 84 | P31: Public administration and defence services; compulsory social security services | Q31: 0.1703405261 | Z31: 34392440.36 | AA31: * | AC31: =VLOOKUP(A31,'[1]Update Sheet'!$A$3:$Y$15578,25,FALSE) -> 0 | AD31: Reportable
A32: SWANSEA UNIVERSITY | B32: 1973 | C32: 1 | D32: Y | E32: Y | F32: TRUE | G32: GB | H32: N | I32: PUBLIC SECTOR | J32: SA2 8PP | K32: South West Wales | L32: Swansea Bay UHB | M32: SWANSEA SA2 | N32: 85421 | O32: 85 | P32: Education services | Q32: 0.1025796668 | Z32: 32395018.76 | AA32: * | AC32: =VLOOKUP(A32,'[1]Update Sheet'!$A$3:$Y$15578,25,FALSE) -> 0 | AD32: Reportable
A33: KNIGHTS CHEMIST LTD | B33: 72271 | D33: N | E33: N | F33: TRUE | G33: GB | H33: N | I33: PRIVATE SECTOR | J33: B98 0RF | M33: PCS PAY | N33: 47730 | O33: 47 | P33: Retail trade services, except of motor vehicles and motorcycles | Q33: 0.1740428731 | Z33: 32304108.42 | AA33: * | AC33: =VLOOKUP(A33,'[1]Update Sheet'!$A$3:$Y$15578,25,FALSE) -> 0 | AD33: Reportable
A34: ELYSIUM HEALTHCARE LTD | B34: 59655 | D34: N | E34: N | F34: TRUE | G34: GB | H34: N | I34: PRIVATE SECTOR | J34: WD6 1JN | M34: BOREHAMWO WD6 | N34: 86101 | O34: 86 | P34: Human health services | Q34: 0.2919316862 | Z34: 31205159.41 | AA34: * | AC34: =VLOOKUP(A34,'[1]Update Sheet'!$A$3:$Y$15578,25,FALSE) -> 0 | AD34: Reportable
A35: ROCHE PRODUCTS LTD | B35: 253 | D35: N | E35: N | F35: TRUE | G35: GB | H35: N | I35: PRIVATE SECTOR | J35: AL7 1TW | M35: PHARMACY | N35: 72190 | O35: 72 | P35: Scientific research and development services | Q35: 0.18562765 | R35: 2021 | S35: 254060000 | T35: 168735000 | U35: 7898074000 | V35: 8320869000 | W35: 54816400000 | X35: 0.1517952474 | Z35: 30692674.99 | AA35: * | AC35: =VLOOKUP(A35,'[1]Update Sheet'!$A$3:$Y$15578,25,FALSE) -> In Master List | AD35: Reportable
A36: BASINGSTOKE & NORTH HAMPSHIRE NHS TRUST | B36: 38543 | C36: 0 | G36: GB | H36: N | I36: PUBLIC SECTOR | J36: WF3 1WE | M36: WAKEFIELD WF3 | N36: 0 | O36: 0 | P36: 0 | Z36: 0 | AC36: =VLOOKUP(A36,'[1]Update Sheet'!$A$3:$Y$15578,25,FALSE) ->  | AD36: Exclude- Intra NHS
A37: BCU PETTY CASH | B37: 40614 | C37: 1 | G37: GB | H37: N | I37: PUBLIC SECTOR | J37: LL33 0HH | M37: FACTORDAVIESD | N37: 0 | O37: 0 | P37: 0 | Z37: 223927.31 | AA37: * | AC37: =VLOOKUP(A37,'[1]Update Sheet'!$A$3:$Y$15578,25,FALSE) -> Public Sector- Exclude | AD37: ?
A38: BCU RENAL PATIENTS | B38: 73510 | C38: 1 | G38: GB | H38: N | I38: PUBLIC SECTOR | M38: FACTOR 23 | N38: 0 | O38: 0 | P38: 0 | Z38: 16652.72 | AA38: * | AC38: =VLOOKUP(A38,'[1]Update Sheet'!$A$3:$Y$15578,25,FALSE) -> Public Sector- Exclude | AD38: ?
A39: SPECSAVERS | B39: 1185 | D39: N | E39: N | F39: TRUE | G39: GB | H39: N | I39: PRIVATE SECTOR | M39: PCS PAY | N39: 47782 | O39: 47 | P39: Retail trade services, except of motor vehicles and motorcycles | Q39: 0.1740428731 | Z39: 28023046.08 | AA39: * | AC39: =VLOOKUP(A39,'[1]Update Sheet'!$A$3:$Y$15578,25,FALSE) -> 0 | AD39: Reportable
A40: CARMARTHENSHIRE COUNTY COUNCIL | B40: 5703 | C40: 1 | D40: Y | E40: Y | F40: TRUE | G40: GB | H40: N | I40: PUBLIC SECTOR | J40: SA31 1LE | K40: South West Wales | L40: Hywel Dda UHB | M40: CARMARTHE SA31 | N40: 84110 | O40: 84 | P40: Public administration and defence services; compulsory social security services | Q40: 0.1703405261 | Z40: 27920672.92 | AA40: * | AC40: =VLOOKUP(A40,'[1]Update Sheet'!$A$3:$Y$15578,25,FALSE) -> 0 | AD40: Reportable
A41: MEDTRONIC LTD | B41: 1788 | D41: N | E41: N | F41: TRUE | G41: GB | H41: N | I41: PRIVATE SECTOR | J41: WD18 8WW | M41: PHARMACY | N41: 32500 | O41: 32 | P41: Other manufactured goods | Q41: 0.6723824941 | R41: 2022 | S41: 817300 | T41: 119280 | U41: 283809420 | V41: 284746000 | W41: 576325000 | X41: 0.4940719212 | Z41: 27651359.33 | AA41: * | AC41: =VLOOKUP(A41,'[1]Update Sheet'!$A$3:$Y$15578,25,FALSE) -> In Master List | AD41: Reportable
A42: ALLOGA UK LTD | B42: 309 | D42: N | E42: N | F42: TRUE | G42: GB | H42: N | I42: PRIVATE SECTOR | J42: DE55 2FH | M42: PHARMACY | N42: 46460 | O42: 46 | P42: Wholesale trade services, except of motor vehicles and motorcycles | Q42: 0.02031003151 | R42: 21-22 | S42: 11917160 | T42: 2694550 | U42: 15310 | V42: 14627020 | W42: 146152000 | X42: 0.1000808747 | Y42: https://www.alloga.co.uk/sites/g/files/xpfdlm101/files/2023-03/Alloga%20UK%20-%20Carbon%20Reduction%20Plan%202023.pdf | Z42: 27561688.81 | AA42: * | AC42: =VLOOKUP(A42,'[1]Update Sheet'!$A$3:$Y$15578,25,FALSE) -> Review as T2 higher than T1 | AD42: Reportable
A43: LLOYDS PHARMACY LTD | B43: 4230 | D43: N | E43: N | F43: TRUE | G43: GB | H43: N | I43: PRIVATE SECTOR | M43: PCS PAY | N43: 86900 | O43: 86 | P43: Human health services | Q43: 0.2919316862 | Z43: 26119203.9 | AA43: * | AC43: =VLOOKUP(A43,'[1]Update Sheet'!$A$3:$Y$15578,25,FALSE) -> 0 | AD43: Reportable
A44: BCU SALARY & WAGES | B44: 40608 | C44: 1 | G44: GB | H44: N | I44: PUBLIC SECTOR | M44: FACTOR0002 | Z44: 21521.37 | AA44: * | AC44: =VLOOKUP(A44,'[1]Update Sheet'!$A$3:$Y$15578,25,FALSE) -> Public Sector- Exclude | AD44: ?
A45: PURPLE SURGICAL | B45: 84 | D45: N | E45: N | F45: TRUE | G45: GB | H45: N | I45: PRIVATE SECTOR | J45: WD7 9AD | M45: PHARMACY | N45: 46460 | O45: 46 | P45: Wholesale trade services, except of motor vehicles and motorcycles | Q45: 0.02031003151 | Z45: 0 | AC45: =VLOOKUP(A45,'[1]Update Sheet'!$A$3:$Y$15578,25,FALSE) -> 0 | AD45: Reportable
A46: BCU WELFARE VOLUNTEERS | B46: 73758 | C46: 1 | G46: GB | H46: N | I46: PUBLIC SECTOR | J46: LL57 2PW | M46: FACTOR 21 | Z46: 3329.84 | AA46: * | AC46: =VLOOKUP(A46,'[1]Update Sheet'!$A$3:$Y$15578,25,FALSE) -> Public Sector- Exclude | AD46: ?
A47: BEDFORD HOSPITAL NHS TRUST | B47: 25064 | C47: 0 | G47: GB | H47: N | I47: PUBLIC SECTOR | M47: BEDFORD MK42 | Z47: 0 | AC47: =VLOOKUP(A47,'[1]Update Sheet'!$A$3:$Y$15578,25,FALSE) -> Public Sector- Exclude | AD47: Exclude- Intra NHS
A48: BAGLAN MOOR HEALTHCARE | B48: 18477 | D48: N | E48: N | F48: TRUE | G48: GB | H48: Y | I48: PRIVATE SECTOR | J48: BA2 3RH | M48: BATH BA2 | N48: 74990 | O48: 74 | P48: Other professional, scientific and technical services | Q48: 0.191425877 | Z48: 22616154.31 | AA48: * | AC48: =VLOOKUP(A48,'[1]Update Sheet'!$A$3:$Y$15578,25,FALSE) -> 0 | AD48: Reportable
A49: EDF ENERGY CUSTOMERS PLC | B49: 29696 | D49: N | E49: N | F49: TRUE | G49: GB | H49: N | I49: PRIVATE SECTOR | J49: GL4 7ZE | M49: EXETER EX1 | N49: 35130 | O49: 35.1 | P49: Electricity, transmission and distribution | Q49: 1.881537182 | Z49: 22505952.8 | AA49: * | AC49: =VLOOKUP(A49,'[1]Update Sheet'!$A$3:$Y$15578,25,FALSE) -> Do not include in master list- EFPMS | AD49: Exclude- Captured under Waste, Energy, Water or Invesments
A50: BEDFORDSHIRE HOSPITALS NHS FOUNDATION TRUST | B50: 20427 | C50: 0 | G50: GB | H50: N | I50: PUBLIC SECTOR | M50: BEDFORD | Z50: 0 | AC50: =VLOOKUP(A50,'[1]Update Sheet'!$A$3:$Y$15578,25,FALSE) -> Public Sector- Exclude | AD50: Exclude- Intra NHS
A51: BAYER PLC | B51: 40 | D51: N | E51: N | F51: TRUE | G51: GB | H51: N | I51: PRIVATE SECTOR | J51: RG2 6AD | M51: PHARMACY | N51: 46460 | O51: 46 | P51: Wholesale trade services, except of motor vehicles and motorcycles | Q51: 0.02031003151 | R51: 2021 | S51: 1145000 | T51: 278000 | U51: 64000 | V51: 1487000 | W51: 750662000 | X51: 0.001980918176 | Y51: carbon reduction plan | Z51: 21835614.39 | AA51: * | AC51: =VLOOKUP(A51,'[1]Update Sheet'!$A$3:$Y$15578,25,FALSE) -> In Master List | AD51: Reportable
A52: HEALTHNET HOMECARE (UK) LTD | B52: 63005 | D52: N | E52: N | F52: TRUE | G52: GB | H52: N | I52: PRIVATE SECTOR | J52: WF7 6EP | M52: PHARMACY | N52: 47730 | O52: 47 | P52: Retail trade services, except of motor vehicles and motorcycles | Q52: 0.1740428731 | Z52: 21443450.06 | AA52: * | AC52: =VLOOKUP(A52,'[1]Update Sheet'!$A$3:$Y$15578,25,FALSE) -> 0 | AD52: Reportable
A53: CAERPHILLY COUNTY BOROUGH COUNCIL | B53: 1476 | C53: 1 | D53: Y | E53: Y | F53: TRUE | G53: GB | H53: N | I53: PUBLIC SECTOR | J53: CF83 8BJ | K53: South East Wales | L53: Aneurin Bevan UHB | M53: HENGOED CF82 | N53: 84110 | O53: 84 | P53: Public administration and defence services; compulsory social security services | Q53: 0.1703405261 | Z53: 20912145.91 | AA53: * | AC53: =VLOOKUP(A53,'[1]Update Sheet'!$A$3:$Y$15578,25,FALSE) -> 0 | AD53: Reportable
A54: BELFAST HEALTH & SOCIAL CARE TRUST | B54: 37171 | C54: 0 | G54: GB | H54: N | I54: PUBLIC SECTOR | J54: BT1 6DN | M54: BELFAST BT1 | N54: 0 | O54: 0 | P54: 0 | Z54: 5418 | AA54: * | AC54: =VLOOKUP(A54,'[1]Update Sheet'!$A$3:$Y$15578,25,FALSE) -> Public Sector- Exclude | AD54: Exclude- Intra NHS
A55: INTEGRATED HEALTH PROJECTS (IHP) - PBA | B55: 71383 | C55: 1 | D55: Y | E55: Y | F55: TRUE | G55: GB | H55: N | I55: PRIVATE SECTOR | J55: WD24 4WW | K55: Various | L55: Various | M55: HDT GGH FPS PH1 | N55: 70229 | O55: 70 | P55: Services of head offices; management consulting services | Q55: 0.09368118376 | Z55: 19645897.38 | AA55: * | AC55: =VLOOKUP(A55,'[1]Update Sheet'!$A$3:$Y$15578,25,FALSE) -> 0 | AD55: Reportable
A56: BERKSHIRE HEALTHCARE NHS FT | B56: 47808 | C56: 0 | G56: GB | H56: N | I56: PUBLIC SECTOR | J56: RG12 1BQ | M56: BRACKNELL RG12 | Z56: 0 | AC56: =VLOOKUP(A56,'[1]Update Sheet'!$A$3:$Y$15578,25,FALSE) -> Public Sector- Exclude | AD56: Exclude- Intra NHS
A57: UNIVERSITY OF SOUTH WALES | B57: 884 | C57: 1 | D57: Y | E57: Y | F57: TRUE | G57: GB | H57: N | I57: PUBLIC SECTOR | J57: CF14 4UJ | K57: South East Wales | L57: Cardiff and Vale UHB | M57: PONTYPRID CF37 | N57: 85421 | O57: 85 | P57: Education services | Q57: 0.1025796668 | Z57: 18939774.59 | AA57: * | AC57: =VLOOKUP(A57,'[1]Update Sheet'!$A$3:$Y$15578,25,FALSE) -> 0 | AD57: Reportable
A58: PHARMAXO PHARMACY LTD | B58: 51911 | D58: N | E58: N | F58: TRUE | G58: GB | H58: N | I58: PRIVATE SECTOR | J58: SN13 9RG | M58: PHARMACY | N58: 46460 | O58: 46 | P58: Wholesale trade services, except of motor vehicles and motorcycles | Q58: 0.02031003151 | R58: 22-23 | S58: 0 | T58: 37350 | U58: 4675730 | V58: 4713140 | W58: 123549492 | X58: 0.03814778939 | Y58: https://pharmaxohealthcare.com/about-us/carbon-reduction-plan/ | Z58: 18232862.03 | AA58: * | AC58: =VLOOKUP(A58,'[1]Update Sheet'!$A$3:$Y$15578,25,FALSE) -> Review as T2 higher than T1 | AD58: Reportable
A59: DELL COMPUTER CORPORATION LTD | B59: 6114 | D59: N | E59: N | F59: TRUE | G59: GB | H59: N | I59: PRIVATE SECTOR | J59: RG12 1LF | M59: BRACKNELL RG12 | N59: 62020 | O59: 62 | P59: Computer programming, consultancy and related services | Q59: 0.131446597 | R59: 2022 | S59: 626000 | T59: 445000 | U59: 48385000 | V59: =SUM(S59:U59) -> 49456000 | W59: =3503501*1000 -> 3503501000 | X59: =V59/W59 -> 0.01411616552 | Z59: 18217866.49 | AA59: * | AC59: =VLOOKUP(A59,'[1]Update Sheet'!$A$3:$Y$15578,25,FALSE) -> In Master List | AD59: Reportable
A60: JOHNSON & JOHNSON MEDICAL LTD | B60: 157 | D60: N | E60: N | F60: TRUE | G60: GB | H60: N | I60: PRIVATE SECTOR | J60: HP12 5DP | M60: PHARMACY | N60: 32500 | O60: 32 | P60: Other manufactured goods | Q60: 0.6723824941 | R60: 21-22 | S60: 367674000 | T60: 616093000 | U60: 1948223000 | V60: 2931990000 | W60: 73144500000 | X60: 0.04008490044 | Y60: Global emissions with $ to £ turnover conversion | Z60: 17614299.03 | AA60: * | AC60: =VLOOKUP(A60,'[1]Update Sheet'!$A$3:$Y$15578,25,FALSE) -> In Master List | AD60: Reportable
A61: BETSI CADWALADR UNIVERSITY LOCAL HEALTH BOARD | B61: 1795 | C61: 1 | G61: GB | H61: N | I61: PUBLIC SECTOR | J61: LL22 8DP | M61: ABERGELE LL22 | Z61: 44160906.71 | AA61: * | AC61: =VLOOKUP(A61,'[1]Update Sheet'!$A$3:$Y$15578,25,FALSE) -> Public Sector- Exclude | AD61: Exclude- Intra NHS
A62: BETSI COVID VACCINE BOOST | B62: 71145 | C62: 1 | G62: GB | H62: N | I62: PUBLIC SECTOR | M62: FACTOR 7 | N62: 0 | O62: 0 | P62: 0 | Z62: 135 | AA62: * | AC62: =VLOOKUP(A62,'[1]Update Sheet'!$A$3:$Y$15578,25,FALSE) -> Public Sector- Exclude | AD62: ?
A63: RETINUE SOLUTIONS LTD | B63: 64769 | D63: N | E63: N | F63: TRUE | G63: GB | H63: Y | I63: PRIVATE SECTOR | J63: EC2R 5AR | M63: LONDON EC2R | N63: 78300 | O63: 78 | P63: Employment services | Q63: 0.1176282196 | R63: 2022 | S63: 1930 | T63: 990 | U63: 66930 | V63: 69850 | W63: 122326000 | X63: 0.0005710151562 | Z63: 17008146.57 | AA63: * | AC63: =VLOOKUP(A63,'[1]Update Sheet'!$A$3:$Y$15578,25,FALSE) -> In Master List | AD63: Reportable
A64: ROCHE DIAGNOSTICS LTD | B64: 252 | D64: N | E64: N | F64: TRUE | G64: GB | H64: N | I64: PRIVATE SECTOR | J64: RH15 9RY | M64: PHARMACY | N64: 74909 | O64: 74 | P64: Other professional, scientific and technical services | Q64: 0.191425877 | Z64: 16596878.64 | AA64: * | AC64: =VLOOKUP(A64,'[1]Update Sheet'!$A$3:$Y$15578,25,FALSE) -> 0 | AD64: Reportable
A65: PEMBROKESHIRE COUNTY COUNCIL | B65: 6277 | C65: 1 | D65: Y | E65: Y | F65: TRUE | G65: GB | H65: N | I65: PUBLIC SECTOR | J65: SA61 1TP | K65: South West Wales | L65: Swansea Bay UHB | M65: HAVERFORD SA61 | N65: 84110 | O65: 84 | P65: Public administration and defence services; compulsory social security services | Q65: 0.1703405261 | Z65: 16544236.14 | AA65: * | AC65: =VLOOKUP(A65,'[1]Update Sheet'!$A$3:$Y$15578,25,FALSE) -> 0 | AD65: Reportable
A66: MEDACS HEALTHCARE PLC | B66: 607 | D66: N | E66: N | F66: TRUE | G66: GB | H66: N | I66: PRIVATE SECTOR | J66: LU1 3BA | M66: SKIPTON BD23 | N66: 78200 | O66: 78 | P66: Employment services | Q66: 0.1176282196 | S66: 200810 | T66: 176810 | U66: 448120 | V66: 825740 | W66: 165765000 | X66: 0.004981389316 | Z66: 16156885.97 | AA66: * | AC66: =VLOOKUP(A66,'[1]Update Sheet'!$A$3:$Y$15578,25,FALSE) -> In Master List | AD66: Reportable
A67: POWYS COUNTY COUNCIL | B67: 6319 | C67: 1 | D67: Y | E67: Y | F67: TRUE | G67: GB | H67: N | I67: PUBLIC SECTOR | J67: LD1 5LG | K67: Mid Wales | L67: Powys Teaching HB | M67: BRECON LD3 | N67: 84110 | O67: 84 | P67: Public administration and defence services; compulsory social security services | Q67: 0.1703405261 | Z67: 16086821.82 | AA67: * | AC67: =VLOOKUP(A67,'[1]Update Sheet'!$A$3:$Y$15578,25,FALSE) -> 0 | AD67: Reportable
A68: FLINTSHIRE COUNTY COUNCIL | B68: 6382 | C68: 1 | D68: Y | E68: Y | F68: TRUE | G68: GB | H68: N | I68: PUBLIC SECTOR | J68: CH7 6NA | K68: North Wales | L68: Betsi Cadwaladr UHB | M68: MOLD CH7 | N68: 84110 | O68: 84 | P68: Public administration and defence services; compulsory social security services | Q68: 0.1703405261 | Z68: 16039860.77 | AA68: * | AC68: =VLOOKUP(A68,'[1]Update Sheet'!$A$3:$Y$15578,25,FALSE) -> 0 | AD68: Reportable
A69: TOTALENERGIES GAS & POWER LTD | B69: 5029 | D69: N | E69: N | F69: TRUE | G69: GB | H69: N | I69: PRIVATE SECTOR | J69: RH1 1RX | M69: REDHILL RH1 | N69: 35130 | O69: 35.1 | P69: Electricity, transmission and distribution | Q69: 1.881537182 | Z69: 15591095.33 | AA69: * | AC69: =VLOOKUP(A69,'[1]Update Sheet'!$A$3:$Y$15578,25,FALSE) -> Do not include in master list- EFPMS | AD69: Exclude- Captured under Waste, Energy, Water or Invesments
A70: BANGOR UNIVERSITY | B70: 4135 | C70: 1 | D70: Y | E70: Y | F70: TRUE | G70: GB | H70: N | I70: PUBLIC SECTOR | J70: LL57 2AS | K70: North Wales | L70: Betsi Cadwaladr UHB | M70: BANGOR LL57 | N70: 85421 | O70: 85 | P70: Education services | Q70: 0.1025796668 | Z70: 15114468 | AA70: * | AC70: =VLOOKUP(A70,'[1]Update Sheet'!$A$3:$Y$15578,25,FALSE) -> 0 | AD70: Reportable
A71: BRISTOL-MYERS SQUIBB PHARM | B71: 61 | D71: N | E71: N | F71: TRUE | G71: GB | H71: Y | I71: PRIVATE SECTOR | J71: UB8 1DH | M71: PHARMACY | N71: 21100 | O71: 21 | P71: Basic pharmaceutical products and pharmaceutical preparations | Q71: 0.6209951816 | R71: 2022 | S71: 202290000 | T71: 161907000 | U71: 1794903000 | V71: 2159100000 | W71: 46159000000 | X71: 0.04677527676 | Y71: Global CRP and Turnover | Z71: 14767009.41 | AA71: * | AC71: =VLOOKUP(A71,'[1]Update Sheet'!$A$3:$Y$15578,25,FALSE) -> In Master List | AD71: Reportable
A72: TESCO STORES LTD | B72: 1852 | C72: 1 | D72: Y | E72: Y | F72: TRUE | G72: GB | H72: N | I72: PRIVATE SECTOR | J72: AL7 1GA | K72: Various | L72: Various | M72: PCS PAY | N72: 47110 | O72: 47 | P72: Retail trade services, except of motor vehicles and motorcycles | Q72: 0.1740428731 | R72: 2023 | S72: 1039346000 | T72: 575462000 | U72: 1047142000 | V72: 2661950000 | W72: 47481000000 | X72: 0.05606347802 | Z72: 14722955.62 | AA72: * | AC72: =VLOOKUP(A72,'[1]Update Sheet'!$A$3:$Y$15578,25,FALSE) -> In Master List | AD72: Reportable
A73: ALCURA UK LTD | B73: 5508 | D73: N | E73: N | F73: TRUE | G73: GB | H73: N | I73: PRIVATE SECTOR | J73: GU34 2QJ | M73: PHARMACY | N73: 46460 | O73: 46 | P73: Wholesale trade services, except of motor vehicles and motorcycles | Q73: 0.02031003151 | Z73: 14664769.32 | AA73: * | AC73: =VLOOKUP(A73,'[1]Update Sheet'!$A$3:$Y$15578,25,FALSE) -> 0 | AD73: Reportable
A74: ID MEDICAL | B74: 22350 | D74: N | E74: N | F74: TRUE | G74: GB | H74: Y | I74: PRIVATE SECTOR | J74: MK12 5ZD | M74: MILTON KE MK12 | N74: 64209 | O74: 64 | P74: Financial services, except insurance and pension funding | Q74: 0.1103075939 | R74: 2022 | S74: 5000 | T74: 113000 | U74: 24000 | V74: 142000 | W74: 145387140 | X74: 0.0009767026162 | Y74: https://www.id-medical.com/wp-content/uploads/2023/12/FE07-Carbon-Reduction-Plan.pdf | Z74: 14396075.25 | AA74: * | AC74: =VLOOKUP(A74,'[1]Update Sheet'!$A$3:$Y$15578,25,FALSE) -> In Master List | AD74: Reportable
A75: BRIDGEND COUNTY BOROUGH COUNCIL | B75: 1420 | C75: 1 | D75: Y | E75: Y | F75: TRUE | G75: GB | H75: N | I75: PUBLIC SECTOR | J75: CF31 4WB | K75: South East Wales | L75: Cwm Taf Morgannwg UHB | M75: BRIDGEND CF31 | N75: 84110 | O75: 84 | P75: Public administration and defence services; compulsory social security services | Q75: 0.1703405261 | Z75: 14312700.1 | AA75: * | AC75: =VLOOKUP(A75,'[1]Update Sheet'!$A$3:$Y$15578,25,FALSE) -> 0 | AD75: Reportable
A76: BIRMINGHAM & SOLIHULL MENTAL HEALTH NHS TRUST | B76: 20040 | C76: 0 | G76: GB | H76: N | I76: PUBLIC SECTOR | J76: B1 3RB | M76: BIRMINGHA B1 | Z76: 274581 | AA76: * | AC76: =VLOOKUP(A76,'[1]Update Sheet'!$A$3:$Y$15578,25,FALSE) -> Public Sector- Exclude | AD76: Exclude- Intra NHS
A77: YOUR WORLD NURSING LTD | B77: 60548 | D77: N | E77: N | F77: TRUE | G77: GB | H77: N | I77: PRIVATE SECTOR | J77: EC2A 2EW | M77: LONDON EC2A | N77: 78200 | O77: 78 | P77: Employment services | Q77: 0.1176282196 | R77: 2022 | S77: 30480 | T77: 8520 | U77: 182910 | V77: =SUM(S77:U77) -> 221910 | W77: 66839708 | X77: =V77/W77 -> 0.003320032457 | Z77: 14179952.83 | AA77: * | AC77: =VLOOKUP(A77,'[1]Update Sheet'!$A$3:$Y$15578,25,FALSE) -> In Master List | AD77: Reportable
A78: CALEA UK LTD | B78: 3630 | D78: N | E78: N | F78: TRUE | G78: GB | H78: N | I78: PRIVATE SECTOR | J78: WA7 1NT | M78: PHARMACY | N78: 21200 | O78: 21 | P78: Basic pharmaceutical products and pharmaceutical preparations | Q78: 0.6209951816 | R78: 20-21 | S78: 1624000 | T78: 492000 | U78: 3873000 | V78: 5989000 | W78: 103000000 | X78: 0.05814563107 | Y78: https://calea.co.uk/wp-content/uploads/2023/03/UK-Carbon-Reduction-Plan-2022-Calea-UK-Limited-.pdf | Z78: 14017607.11 | AA78: * | AC78: =VLOOKUP(A78,'[1]Update Sheet'!$A$3:$Y$15578,25,FALSE) -> In Master List | AD78: Reportable
A79: NEATH PORT TALBOT COUNCIL | B79: 5922 | C79: 1 | D79: Y | E79: Y | F79: TRUE | G79: GB | H79: N | I79: PUBLIC SECTOR | J79: SA11 3QZ | K79: South West Wales | L79: Swansea Bay UHB | M79: NEATH SA11 | N79: 84110 | O79: 84 | P79: Public administration and defence services; compulsory social security services | Q79: 0.1703405261 | Z79: 13696092.43 | AA79: * | AC79: =VLOOKUP(A79,'[1]Update Sheet'!$A$3:$Y$15578,25,FALSE) -> 0 | AD79: Reportable
A80: CYGNET HEALTHCARE LTD | B80: 15952 | D80: N | E80: N | F80: TRUE | G80: GB | H80: N | I80: PRIVATE SECTOR | J80: SG1 4YS | M80: STEVENAGE SG1 | N80: 86101 | O80: 86 | P80: Human health services | Q80: 0.2919316862 | R80: 2022 | S80: 626000 | T80: 445000 | U80: 48385000 | V80: =SUM(S80:U80) -> 49456000 | W80: =3503501*1000 -> 3503501000 | X80: =V80/W80 -> 0.01411616552 | Z80: 13652703.83 | AA80: * | AC80: =VLOOKUP(A80,'[1]Update Sheet'!$A$3:$Y$15578,25,FALSE) -> In Master List | AD80: Reportable
A81: BIRMINGHAM COMMUNITY HEALTHCARE NHS TRUST | B81: 43565 | C81: 0 | G81: GB | H81: N | I81: PUBLIC SECTOR | J81: BB3 0FG | M81: CHC DARWEN BB3 | Z81: 0 | AC81: =VLOOKUP(A81,'[1]Update Sheet'!$A$3:$Y$15578,25,FALSE) -> Public Sector- Exclude | AD81: Exclude- Intra NHS
A82: PARTNERSHIPS IN CARE LTD | B82: 15425 | D82: N | E82: N | F82: TRUE | G82: GB | H82: N | I82: PRIVATE SECTOR | J82: GL3 4AB | M82: BOREHAMWO WD6 | N82: 86101 | O82: 86 | P82: Human health services | Q82: 0.2919316862 | Z82: 13340969.19 | AA82: * | AC82: =VLOOKUP(A82,'[1]Update Sheet'!$A$3:$Y$15578,25,FALSE) -> 0 | AD82: Reportable
A83: BAXTER HEALTHCARE LTD | B83: 39 | D83: N | E83: N | F83: TRUE | G83: GB | H83: N | I83: PRIVATE SECTOR | J83: NN4 7UF | M83: PHARMACY | N83: 21100 | O83: 21 | P83: Basic pharmaceutical products and pharmaceutical preparations | Q83: 0.6209951816 | R83: 2022 | S83: 373000000 | T83: 242000000 | U83: 6178000000 | V83: 6793000000 | W83: 11699900000 | X83: 0.580603253 | Z83: 13043925.77 | AA83: * | AC83: =VLOOKUP(A83,'[1]Update Sheet'!$A$3:$Y$15578,25,FALSE) -> In Master List | AD83: Reportable
A84: QUALASEPT LTD | B84: 29238 | D84: N | E84: N | F84: TRUE | G84: GB | H84: N | I84: PRIVATE SECTOR | J84: SN13 9RG | M84: PHARMACY | N84: 64209 | O84: 64 | P84: Financial services, except insurance and pension funding | Q84: 0.1103075939 | R84: 2022 | S84: 55000 | T84: 343250 | U84: 3984000 | V84: 4382250 | W84: 142458852 | X84: 0.03076151421 | Z84: 13043811.65 | AA84: * | AC84: =VLOOKUP(A84,'[1]Update Sheet'!$A$3:$Y$15578,25,FALSE) -> In Master List | AD84: Reportable
A85: CONWY COUNTY BOROUGH COUNCIL | B85: 5280 | C85: 1 | D85: Y | E85: Y | F85: TRUE | G85: GB | H85: N | I85: PUBLIC SECTOR | J85: LL30 9GN | K85: North Wales | L85: Betsi Cadwaladr UHB | M85: CONWY LL32 | N85: 84110 | O85: 84 | P85: Public administration and defence services; compulsory social security services | Q85: 0.1703405261 | Z85: 12912828.95 | AA85: * | AC85: =VLOOKUP(A85,'[1]Update Sheet'!$A$3:$Y$15578,25,FALSE) -> 0 | AD85: Reportable
A86: B BRAUN AVITUM (UK) LTD | B86: 34587 | D86: N | E86: N | F86: TRUE | G86: GB | H86: Y | I86: PRIVATE SECTOR | J86: S35 2PW | M86: SHEFFIELD S35 | N86: 86900 | O86: 86 | P86: Human health services | Q86: 0.2919316862 | R86: 2022 | S86: 1033000 | T86: 494000 | U86: 7135000 | V86: 7135000 | W86: 200475000 | X86: 0.03559047263 | Z86: 12747937.88 | AA86: * | AC86: =VLOOKUP(A86,'[1]Update Sheet'!$A$3:$Y$15578,25,FALSE) -> In Master List | AD86: Reportable
A87: MEDICSPRO LTD | B87: 52926 | D87: N | E87: N | F87: TRUE | G87: GB | H87: N | I87: PRIVATE SECTOR | J87: RM1 1ES | M87: ROMFORD RM1 | N87: 78200 | O87: 78 | P87: Employment services | Q87: 0.1176282196 | R87: 2023 | S87: 0 | T87: 28800 | U87: 81000 | V87: 109820 | W87: 60578949 | X87: 0.001812840959 | Z87: 12707364.86 | AA87: * | AC87: =VLOOKUP(A87,'[1]Update Sheet'!$A$3:$Y$15578,25,FALSE) -> In Master List | AD87: Reportable
A88: QUANTUM PHARMACEUTICAL LTD | B88: 50907 | D88: N | E88: N | F88: TRUE | G88: GB | H88: N | I88: PRIVATE SECTOR | J88: NE16 6EA | M88: PHARMACY | N88: 21200 | O88: 21 | P88: Basic pharmaceutical products and pharmaceutical preparations | Q88: 0.6209951816 | Z88: 12640290.55 | AA88: * | AC88: =VLOOKUP(A88,'[1]Update Sheet'!$A$3:$Y$15578,25,FALSE) -> 0 | AD88: Reportable
A89: RAJJA LTD | B89: 68663 | D89: N | E89: N | F89: TRUE | G89: GB | H89: Y | I89: PRIVATE SECTOR | J89: B32 1RJ | M89: PCS PAY | N89: 86900 | O89: 86 | P89: Human health services | Q89: 0.2919316862 | R89: 2022 | S89: 2094000 | T89: 98000 | U89: 2656000 | V89: 4848000 | W89: 45129438 | X89: 0.107424338 | Z89: 12254564.96 | AA89: * | AC89: =VLOOKUP(A89,'[1]Update Sheet'!$A$3:$Y$15578,25,FALSE) -> In Master List | AD89: Reportable
A90: NOVARTIS PHARMACEUTICALS UK LTD | B90: 209 | D90: N | E90: N | F90: TRUE | G90: GB | H90: N | I90: PRIVATE SECTOR | J90: W12 7FQ | M90: PHARMACY | N90: 21100 | O90: 21 | P90: Basic pharmaceutical products and pharmaceutical preparations | Q90: 0.6209951816 | R90: 2022 | S90: 343149000 | T90: 147501000 | U90: 7663118000 | V90: 8153768000 | W90: 36394800000 | X90: 0.2240366206 | Y90: sustainability strategy | Z90: 12095660.46 | AA90: * | AC90: =VLOOKUP(A90,'[1]Update Sheet'!$A$3:$Y$15578,25,FALSE) -> In Master List | AD90: Reportable
A91: MAGAWELL LTD T/A EVANS PHARMACY | B91: 65880 | C91: 1 | D91: Y | E91: Y | F91: TRUE | G91: GB | H91: Y | I91: PRIVATE SECTOR | K91: South East Wales | L91: Aneurin Bevan UHB | M91: PCS PAY | N91: 47730 | O91: 47 | P91: Retail trade services, except of motor vehicles and motorcycles | Q91: 0.1740428731 | Z91: 12080203.36 | AA91: * | AC91: =VLOOKUP(A91,'[1]Update Sheet'!$A$3:$Y$15578,25,FALSE) -> 0 | AD91: Reportable
A92: NEWPORT CITY COUNCIL | B92: 5923 | C92: 1 | D92: Y | E92: Y | F92: TRUE | G92: GB | H92: N | I92: PUBLIC SECTOR | J92: NP20 9LU | K92: South East Wales | L92: Aneurin Bevan UHB | M92: NEWPORT NP20 | N92: 84110 | O92: 84 | P92: Public administration and defence services; compulsory social security services | Q92: 0.1703405261 | Z92: 12063509.77 | AA92: * | AC92: =VLOOKUP(A92,'[1]Update Sheet'!$A$3:$Y$15578,25,FALSE) -> 0 | AD92: Reportable
A93: NEXT STEP NURSING LTD | B93: 61024 | D93: N | E93: N | F93: TRUE | G93: GB | H93: Y | I93: PRIVATE SECTOR | J93: CR0 2FT | M93: CROYDON CR9 | N93: 78200 | O93: 78 | P93: Employment services | Q93: 0.1176282196 | Z93: 11660061.6 | AA93: * | AC93: =VLOOKUP(A93,'[1]Update Sheet'!$A$3:$Y$15578,25,FALSE) -> 0 | AD93: Reportable
A94: BIRMINGHAM WOMENS & CHILDRENS NHS FOUNDATION TRUST (BWC) | B94: 52 | C94: 0 | G94: GB | H94: N | I94: PUBLIC SECTOR | J94: B4 6NH | M94: BIRMINGHA B4 | Z94: 2897265.52 | AA94: * | AC94: =VLOOKUP(A94,'[1]Update Sheet'!$A$3:$Y$15578,25,FALSE) -> Public Sector- Exclude | AD94: Exclude- Intra NHS
A95: DENBIGHSHIRE COUNTY COUNCIL | B95: 2372 | C95: 1 | D95: Y | E95: Y | F95: TRUE | G95: GB | H95: N | I95: PUBLIC SECTOR | J95: LL18 5PU | K95: North Wales | L95: Betsi Cadwaladr UHB | M95: ESTATES | N95: 84110 | O95: 84 | P95: Public administration and defence services; compulsory social security services | Q95: 0.1703405261 | Z95: 11613157.73 | AA95: * | AC95: =VLOOKUP(A95,'[1]Update Sheet'!$A$3:$Y$15578,25,FALSE) -> 0 | AD95: Reportable
A96: ENFERM MEDICAL LTD | B96: 60996 | D96: N | E96: N | F96: TRUE | G96: GB | H96: Y | I96: PRIVATE SECTOR | J96: MK12 5TW | M96: MILTON MK12 | N96: 78200 | O96: 78 | P96: Employment services | Q96: 0.1176282196 | Z96: 11566409.03 | AA96: * | AC96: =VLOOKUP(A96,'[1]Update Sheet'!$A$3:$Y$15578,25,FALSE) -> 0 | AD96: Reportable
A97: BLACK COUNTRY HEALTHCARE NHS FOUNDATION TRUST | B97: 44681 | C97: 0 | G97: GB | H97: N | I97: PUBLIC SECTOR | J97: B70 9PL | M97: WEST BROM B70 | Z97: 7921.56 | AA97: * | AC97: =VLOOKUP(A97,'[1]Update Sheet'!$A$3:$Y$15578,25,FALSE) -> Public Sector- Exclude | AD97: Exclude- Intra NHS
A98: STRYKER UK LTD | B98: 6192 | D98: N | E98: N | F98: TRUE | G98: GB | H98: N | I98: PRIVATE SECTOR | M98: PHARMACY | N98: 86900 | O98: 86 | P98: Human health services | Q98: 0.2919316862 | R98: 2022 | S98: 24883000 | T98: 114213000 | U98: 480269000 | V98: 619365000 | W98: 15982200000 | X98: 0.03875342569 | Z98: 11526813.72 | AA98: * | AC98: =VLOOKUP(A98,'[1]Update Sheet'!$A$3:$Y$15578,25,FALSE) -> In Master List | AD98: Reportable
A99: PHOENIX HEALTHCARE DISTRIBUTION LTD | B99: 21686 | D99: N | E99: N | F99: TRUE | G99: GB | H99: N | I99: PRIVATE SECTOR | J99: WA7 3DJ | M99: PHARMACY | N99: 46460 | O99: 46 | P99: Wholesale trade services, except of motor vehicles and motorcycles | Q99: 0.02031003151 | Z99: 11411948.38 | AA99: * | AC99: =VLOOKUP(A99,'[1]Update Sheet'!$A$3:$Y$15578,25,FALSE) -> 0 | AD99: Reportable
A100: SOFTCAT | B100: 32231 | D100: N | E100: N | F100: TRUE | G100: GB | H100: N | I100: PRIVATE SECTOR | J100: SL7 1LW | M100: MARLOW SL7 | N100: 62090 | O100: 62 | P100: Computer programming, consultancy and related services | Q100: 0.131446597 | R100: 2022 | S100: 229000 | T100: 334000 | U100: 383014000 | V100: 383577000 | W100: 1077900000 | X100: 0.3558558308 | Y100: carbon reduction plan | Z100: 11373517.12 | AA100: * | AC100: =VLOOKUP(A100,'[1]Update Sheet'!$A$3:$Y$15578,25,FALSE) -> Review as T2 higher than T1 | AD100: Reportable
A101: JANSSEN CILAG LTD | B101: 154 | D101: N | E101: N | F101: TRUE | G101: GB | H101: N | I101: PRIVATE SECTOR | J101: HP12 4EG | M101: PHARMACY | N101: 21200 | O101: 21 | P101: Basic pharmaceutical products and pharmaceutical preparations | Q101: 0.6209951816 | Z101: 11289777.43 | AA101: * | AC101: =VLOOKUP(A101,'[1]Update Sheet'!$A$3:$Y$15578,25,FALSE) -> 0 | AD101: Reportable
A102: ACCOMPLISH GROUP LTD | B102: 16064 | D102: N | E102: N | F102: TRUE | G102: GB | H102: Y | I102: PRIVATE SECTOR | J102: SA1 3YJ | M102: BIRMINGH B45 | N102: 87200 | O102: 87 | P102: Residential care services | Q102: 0.1651443706 | Z102: 11173687.34 | AA102: * | AC102: =VLOOKUP(A102,'[1]Update Sheet'!$A$3:$Y$15578,25,FALSE) -> 0 | AD102: Reportable
A103: OVERDRAKE LTD | B103: 68640 | C103: 1 | D103: Y | E103: Y | F103: TRUE | G103: GB | H103: Y | I103: PRIVATE SECTOR | K103: South West Wales | L103: Swansea Bay UHB | M103: PCS PAY | N103: 47730 | O103: 47 | P103: Retail trade services, except of motor vehicles and motorcycles | Q103: 0.1740428731 | Z103: 11103499.54 | AA103: * | AC103: =VLOOKUP(A103,'[1]Update Sheet'!$A$3:$Y$15578,25,FALSE) -> 0 | AD103: Reportable
A104: SHARIEF HEALTHCARE LTD | B104: 76118 | D104: N | E104: N | F104: TRUE | G104: GB | H104: N | I104: PRIVATE SECTOR | J104: WA9 4TU | M104: PCS PAY | N104: 47730 | O104: 47 | P104: Retail trade services, except of motor vehicles and motorcycles | Q104: 0.1740428731 | Z104: 10998068.37 | AA104: * | AC104: =VLOOKUP(A104,'[1]Update Sheet'!$A$3:$Y$15578,25,FALSE) -> 0 | AD104: Reportable
A105: GWYNEDD COUNCIL | B105: 5332 | C105: 1 | D105: Y | E105: Y | F105: TRUE | G105: GB | H105: N | I105: PUBLIC SECTOR | J105: LL55 1BN | K105: North Wales | L105: Betsi Cadwaladr UHB | M105: CAERNARFO LL55 | N105: 84110 | O105: 84 | P105: Public administration and defence services; compulsory social security services | Q105: 0.1703405261 | Z105: 10859701.72 | AA105: * | AC105: =VLOOKUP(A105,'[1]Update Sheet'!$A$3:$Y$15578,25,FALSE) -> 0 | AD105: Reportable
A106: CTT L&C | B106: 50084 | C106: 1 | D106: Y | E106: Y | F106: TRUE | G106: GB | H106: N | I106: PUBLIC SECTOR | J106: CF44 7PF | K106: South East Wales | L106: Cwm Taf Morgannwg UHB | M106: FACTOR 00828 | N106: 86101 | O106: 86 | P106: Human health services | Q106: 0.2919316862 | Z106: 10832802.03 | AA106: * | AC106: =VLOOKUP(A106,'[1]Update Sheet'!$A$3:$Y$15578,25,FALSE) -> 0 | AD106: Reportable
A107: CSL BEHRING UK LTD | B107: 5977 | D107: N | E107: N | F107: TRUE | G107: GB | H107: N | I107: PRIVATE SECTOR | J107: RH16 1DB | M107: PHARMACY | N107: 46460 | O107: 46 | P107: Wholesale trade services, except of motor vehicles and motorcycles | Q107: 0.02031003151 | Z107: 10737754.98 | AA107: * | AC107: =VLOOKUP(A107,'[1]Update Sheet'!$A$3:$Y$15578,25,FALSE) -> 0 | AD107: Reportable
A108: INDEPENDENT CLINICAL SERVICES LTD TA THORNBURY NURSING SERVICES | B108: 1873 | D108: N | E108: N | F108: TRUE | G108: GB | H108: Y | I108: PRIVATE SECTOR | J108: BS41 9FH | M108: BRISTOL BS41 | N108: 86101 | O108: 86 | P108: Human health services | Q108: 0.2919316862 | R108: 2022 | S108: 1527400 | T108: 580300 | U108: 5078600 | V108: 7186300 | W108: 2280531000 | X108: 0.003151152078 | Z108: 10598098.03 | AA108: * | AC108: =VLOOKUP(A108,'[1]Update Sheet'!$A$3:$Y$15578,25,FALSE) -> In Master List | AD108: Reportable
A109: BOSTON SCIENTIFIC LTD | B109: 377 | D109: N | E109: N | F109: TRUE | G109: GB | H109: N | I109: PRIVATE SECTOR | J109: HP2 4TZ | M109: HEMEL HEM HP2 | N109: 46690 | O109: 46 | P109: Wholesale trade services, except of motor vehicles and motorcycles | Q109: 0.02031003151 | R109: 2022 | S109: 423000 | T109: 37000 | U109: 1330000 | V109: 1790000 | W109: 247628000 | X109: 0.007228584813 | Z109: 10544710.5 | AA109: * | AC109: =VLOOKUP(A109,'[1]Update Sheet'!$A$3:$Y$15578,25,FALSE) -> In Master List | AD109: Reportable
A110: TORFAEN COUNTY BOROUGH COUNCIL | B110: 6321 | C110: 1 | D110: Y | E110: Y | F110: TRUE | G110: GB | H110: N | I110: PUBLIC SECTOR | J110: NP4 6YB | K110: South East Wales | L110: Aneurin Bevan UHB | M110: PONTYPOOL NP4 | N110: 84110 | O110: 84 | P110: Public administration and defence services; compulsory social security services | Q110: 0.1703405261 | Z110: 10358493.46 | AA110: * | AC110: =VLOOKUP(A110,'[1]Update Sheet'!$A$3:$Y$15578,25,FALSE) -> 0 | AD110: Reportable
A111: MAWDSLEY BROOKS & CO LTD | B111: 18192 | D111: N | E111: N | F111: TRUE | G111: GB | H111: N | I111: PRIVATE SECTOR | J111: M50 2PW | M111: PHARMACY | N111: 46460 | O111: 46 | P111: Wholesale trade services, except of motor vehicles and motorcycles | Q111: 0.02031003151 | R111: 21-22 | S111: 4090000 | T111: 0 | U111: 967000 | V111: 5057000 | W111: 398900000 | X111: 0.01267736275 | Y111: https://www.mawdsleys.co.uk/wp-content/uploads/2023/11/Carbon-reduction-plan_Nov-23-1.pdf | Z111: 10186654.02 | AA111: * | AC111: =VLOOKUP(A111,'[1]Update Sheet'!$A$3:$Y$15578,25,FALSE) -> In Master List | AD111: Reportable
A112: WREXHAM COUNTY BOROUGH COUNCIL | B112: 120 | C112: 1 | D112: Y | E112: Y | F112: TRUE | G112: GB | H112: N | I112: PUBLIC SECTOR | J112: LL11 1AR | K112: North Wales | L112: Betsi Cadwaladr UHB | M112: ESTATES | N112: 84110 | O112: 84 | P112: Public administration and defence services; compulsory social security services | Q112: 0.1703405261 | Z112: 10164979.01 | AA112: * | AC112: =VLOOKUP(A112,'[1]Update Sheet'!$A$3:$Y$15578,25,FALSE) -> 0 | AD112: Reportable
A113: MONMOUTHSHIRE COUNTY COUNCIL | B113: 6311 | C113: 1 | D113: Y | E113: Y | F113: TRUE | G113: GB | H113: N | I113: PUBLIC SECTOR | J113: NP7 6EL | K113: South East Wales | L113: Aneurin Bevan UHB | M113: CALDICOT NP26 | N113: 84110 | O113: 84 | P113: Public administration and defence services; compulsory social security services | Q113: 0.1703405261 | Z113: 9826701.69 | AA113: * | AC113: =VLOOKUP(A113,'[1]Update Sheet'!$A$3:$Y$15578,25,FALSE) -> 0 | AD113: Reportable
A114: CEREDIGION COUNTY COUNCIL | B114: 6160 | C114: 1 | D114: Y | E114: Y | F114: TRUE | G114: GB | H114: N | I114: PUBLIC SECTOR | J114: SY23 2EB | K114: Mid Wales | L114: Hywel Dda UHB | M114: ABERYSTWY SY23 | N114: 84110 | O114: 84 | P114: Public administration and defence services; compulsory social security services | Q114: 0.1703405261 | Z114: 9715080.74 | AA114: * | AC114: =VLOOKUP(A114,'[1]Update Sheet'!$A$3:$Y$15578,25,FALSE) -> 0 | AD114: Reportable
A115: CASTELL HOWELL FOODS LTD | B115: 1536 | C115: 1 | D115: Y | E115: Y | F115: TRUE | G115: GB | H115: N | I115: PRIVATE SECTOR | J115: SA14 6SX | K115: South West Wales | L115: Hywel Dda UHB | M115: LLANELLI SA14 | N115: 46390 | O115: 46 | P115: Wholesale trade services, except of motor vehicles and motorcycles | Q115: 0.02031003151 | Z115: 9607250.13 | AA115: * | AC115: =VLOOKUP(A115,'[1]Update Sheet'!$A$3:$Y$15578,25,FALSE) -> 0 | AD115: Reportable
A116: MPS HEALTHCARE LTD | B116: 1989 | D116: N | E116: N | F116: TRUE | G116: GB | H116: Y | I116: PRIVATE SECTOR | J116: CF72 8XN | M116: COVENTRY CV1 | N116: 78200 | O116: 78 | P116: Employment services | Q116: 0.1176282196 | Z116: 9598317.25 | AA116: * | AC116: =VLOOKUP(A116,'[1]Update Sheet'!$A$3:$Y$15578,25,FALSE) -> 0 | AD116: Reportable
A117: BLUESTONES MEDICAL | B117: 45600 | D117: N | E117: N | F117: TRUE | G117: GB | H117: Y | I117: PRIVATE SECTOR | J117: CH2 4RG | M117: CHESTER CH1 | N117: 86900 | O117: 86 | P117: Human health services | Q117: 0.2919316862 | R117: 2022 | S117: 4073 | T117: 2909 | U117: 4254 | V117: 11236 | W117: 8044541 | X117: =V117/W117 -> 0.001396723567 | Z117: 9585244.16 | AA117: * | AC117: =VLOOKUP(A117,'[1]Update Sheet'!$A$3:$Y$15578,25,FALSE) -> In Master List | AD117: Reportable
A118: EVERLIGHT RADIOLOGY LTD | B118: 72935 | D118: N | E118: N | F118: TRUE | G118: GB | H118: N | I118: PRIVATE SECTOR | J118: NW1 3AX | M118: LONDON NW1 | N118: 86900 | O118: 86 | P118: Human health services | Q118: 0.2919316862 | R118: 23-24 | S118: 0 | T118: 68800 | U118: 636900 | V118: 705700 | W118: 46265000 | X118: 0.01525343132 | Y118: https://view.officeapps.live.com/op/view.aspx?src=https%3A%2F%2Fwww.everlightradiology.com%2Fhubfs%2FCarbon%2520reduction%2520Plan%2FCarbon%2520reduction%2520plan%2520Everlight%2520Radiology%25202023.docx&wdOrigin=BROWSELINK | Z118: 9475476.18 | AA118: * | AC118: =VLOOKUP(A118,'[1]Update Sheet'!$A$3:$Y$15578,25,FALSE) -> In Master List | AD118: Reportable
A119: ABBOTT LABORATORIES LTD | B119: 5 | D119: N | E119: N | F119: TRUE | G119: GB | H119: N | I119: PRIVATE SECTOR | M119: PHARMACY | N119: 46460 | O119: 46 | P119: Wholesale trade services, except of motor vehicles and motorcycles | Q119: 0.02031003151 | R119: 2022 | S119: 508000 | T119: 336000 | U119: 10447000 | V119: 11292000 | W119: 479308000 | X119: 0.02355896417 | Z119: 9475002.33 | AA119: * | AC119: =VLOOKUP(A119,'[1]Update Sheet'!$A$3:$Y$15578,25,FALSE) -> Review as T2 higher than T1 | AD119: Reportable
A120: ONTEX HEALTHCARE UK LTD | B120: 2132 | D120: N | E120: N | F120: TRUE | G120: GB | H120: N | I120: PRIVATE SECTOR | J120: NN17 5JG | M120: CORBY NN17 | N120: 82110 | O120: 82 | P120: Office administrative, office support and other business support services | Q120: 0.118050436 | Z120: 9354669.94 | AA120: * | AC120: =VLOOKUP(A120,'[1]Update Sheet'!$A$3:$Y$15578,25,FALSE) -> 0 | AD120: Reportable
A121: POLAR SPEED DISTRIBUTION LTD | B121: 16791 | D121: N | E121: N | F121: TRUE | G121: GB | H121: N | I121: PRIVATE SECTOR | J121: LU7 4WG | M121: PHARMACY | N121: 49410 | O121: 49.3-5 | P121: Land transport services and transport services via pipelines, excluding rail transport | Q121: 0.6031570354 | R121: 2022 | S121: 8333970 | T121: 387250 | U121: 10661910 | V121: 19383130 | W121: 50923930 | X121: 0.380629107 | Z121: 9275283.83 | AA121: * | AC121: =VLOOKUP(A121,'[1]Update Sheet'!$A$3:$Y$15578,25,FALSE) -> In Master List | AD121: Reportable
A122: BAM CONSTRUCTION LTD | B122: 16712 | C122: 1 | D122: Y | E122: Y | F122: TRUE | G122: GB | H122: N | I122: PRIVATE SECTOR | J122: CF83 3ED | K122: South East Wales | L122: Aneurin Bevan UHB | M122: ESTATES | N122: 41201 | O122: 41.2 | P122: Buildings and building construction works | Q122: 0.3050063626 | R122: 22-23 | S122: 33410000 | T122: 7630000 | U122: 153920000 | V122: 194750000 | W122: 900900000 | X122: 0.2161727162 | Y122: https://www.bam.co.uk/docs/default-source/sustainability-reports/1336_bam-construct---carbon-reduction-plan-2022-new.pdf?sfvrsn=643727c2_12#:~:text=Following%20the%20work%20with%20ANZ,IGBC)%20Net%20Zero%20Ireland%20commitment. | Z122: 9218839.75 | AA122: * | AC122: =VLOOKUP(A122,'[1]Update Sheet'!$A$3:$Y$15578,25,FALSE) -> In Master List | AD122: Reportable
A123: ALLSTAR BUSINESS SOLUTIONS LTD | B123: 21224 | D123: N | E123: N | F123: TRUE | G123: GB | H123: N | I123: PRIVATE SECTOR | J123: SN5 6PS | M123: SWINDON SN5 | N123: 82990 | O123: 82 | P123: Office administrative, office support and other business support services | Q123: 0.118050436 | Z123: 9035504.37 | AA123: * | AC123: =VLOOKUP(A123,'[1]Update Sheet'!$A$3:$Y$15578,25,FALSE) -> 0 | AD123: Exclude- Captured under Waste, Energy, Water or Invesments
A124: INTERSYSTEMS CORPORATION | B124: 29487 | D124: N | E124: N | F124: TRUE | G124: GB | H124: N | I124: PRIVATE SECTOR | J124: SL4 6BB | M124: WINDSOR SL4 | N124: 63110 | O124: 63 | P124: Information services | Q124: 0.1693416988 | Z124: 8711847.4 | AA124: * | AC124: =VLOOKUP(A124,'[1]Update Sheet'!$A$3:$Y$15578,25,FALSE) -> 0 | AD124: Reportable
A125: THE PRIORY GROUP | B125: 30830 | D125: N | E125: N | F125: TRUE | G125: GB | H125: N | I125: PRIVATE SECTOR | J125: DL2 1TS | M125: AVALON | N125: 68201 | O125: 68.2IMP | P125: Owner-Occupiers' Housing Services | Q125: 0.03962136813 | Z125: 8673988.96 | AA125: * | AC125: =VLOOKUP(A125,'[1]Update Sheet'!$A$3:$Y$15578,25,FALSE) -> 0 | AD125: Reportable
A126: BAYWATER HEALTHCARE UK LTD | B126: 49560 | D126: N | E126: N | F126: TRUE | G126: GB | H126: N | I126: PRIVATE SECTOR | J126: CW1 6GW | M126: CREWE CW1 | N126: 86900 | O126: 86 | P126: Human health services | Q126: 0.2919316862 | R126: 2022 | S126: 1960700 | T126: 43300 | U126: 347000 | V126: 2351000 | W126: 31395000 | X126: 0.1734657285 | Y126: https://www.baywater.co.uk/app/uploads/Carbon-Reduction-Plan-June-2023.pdf | Z126: 8653699.07 | AA126: * | AC126: =VLOOKUP(A126,'[1]Update Sheet'!$A$3:$Y$15578,25,FALSE) -> In Master List | AD126: Reportable
A127: CDW LTD | B127: 5878 | D127: N | E127: N | F127: TRUE | G127: GB | H127: N | I127: PRIVATE SECTOR | J127: EC4M 9AF | M127: SWANSEA SA1 | N127: 47910 | O127: 47 | P127: Retail trade services, except of motor vehicles and motorcycles | Q127: 0.1740428731 | R127: 2021 | S127: 337500 | T127: 359300 | U127: 265100 | V127: 961900 | W127: 1090100000 | X127: 0.0008823961104 | Z127: 8600173.35 | AA127: * | AC127: =VLOOKUP(A127,'[1]Update Sheet'!$A$3:$Y$15578,25,FALSE) -> In Master List | AD127: Reportable
A128: WREXHAM UNIVERSITY | B128: 34655 | C128: 1 | D128: Y | E128: Y | F128: TRUE | G128: GB | H128: N | I128: PUBLIC SECTOR | J128: LL11 2AW | K128: North Wales | L128: Betsi Cadwaladr UHB | M128: WREXHAM LL1 | N128: 85421 | O128: 85 | P128: Education services | Q128: 0.1025796668 | Z128: 8517360.31 | AA128: * | AC128: =VLOOKUP(A128,'[1]Update Sheet'!$A$3:$Y$15578,25,FALSE) -> 0 | AD128: Reportable
A129: DOWLAIS PHARMACY LTD | B129: 68442 | C129: 1 | D129: Y | E129: Y | F129: TRUE | G129: GB | H129: Y | I129: PRIVATE SECTOR | K129: South East Wales | L129: Cwm Taf Morgannwg UHB | M129: PCS PAY | N129: 86900 | O129: 86 | P129: Human health services | Q129: 0.2919316862 | Z129: 8489591.62 | AA129: * | AC129: =VLOOKUP(A129,'[1]Update Sheet'!$A$3:$Y$15578,25,FALSE) -> 0 | AD129: Reportable
A130: TY CWM GWENDRAETH LTD | B130: 69665 | C130: 1 | D130: Y | E130: Y | F130: TRUE | G130: GB | H130: Y | I130: PRIVATE SECTOR | J130: SA7 9LA | K130: South West Wales | L130: Swansea Bay UHB | M130: SWANSEA SA7 | N130: 87300 | O130: 87 | P130: Residential care services | Q130: 0.1651443706 | Z130: 8403566.56 | AA130: * | AC130: =VLOOKUP(A130,'[1]Update Sheet'!$A$3:$Y$15578,25,FALSE) -> 0 | AD130: Reportable
A131: MAYBERRY PHARMACY LTD | B131: 67949 | C131: 1 | D131: Y | E131: Y | F131: TRUE | G131: GB | H131: N | I131: PRIVATE SECTOR | J131: NP12 1AA | K131: South East Wales | L131: Aneurin Bevan UHB | M131: PCS PAY | N131: 86900 | O131: 86 | P131: Human health services | Q131: 0.2919316862 | Z131: 8324078.15 | AA131: * | AC131: =VLOOKUP(A131,'[1]Update Sheet'!$A$3:$Y$15578,25,FALSE) -> 0 | AD131: Reportable
A132: OAKFIELD PHARMA LTD | B132: 75623 | D132: N | E132: N | F132: TRUE | G132: GB | H132: N | I132: PRIVATE SECTOR | J132: WA9 4TU | M132: PCS PAY | N132: 47730 | O132: 47 | P132: Retail trade services, except of motor vehicles and motorcycles | Q132: 0.1740428731 | Z132: 8262311.56 | AA132: * | AC132: =VLOOKUP(A132,'[1]Update Sheet'!$A$3:$Y$15578,25,FALSE) -> 0 | AD132: Reportable
A133: VECTOR CONSUMER LTD | B133: 73651 | D133: N | E133: N | F133: TRUE | G133: GB | H133: N | I133: PRIVATE SECTOR | J133: CH41 7EL | M133: BIDSTON CH41 | N133: 21100 | O133: 21 | P133: Basic pharmaceutical products and pharmaceutical preparations | Q133: 0.6209951816 | Y133: https://blob-static.vector.co.nz/blob/vector/media/vector2021/vector_tcfd_2021.pdf | Z133: 8204667.48 | AA133: * | AC133: =VLOOKUP(A133,'[1]Update Sheet'!$A$3:$Y$15578,25,FALSE) -> 0 | AD133: Reportable
A134: VARIAN MEDICAL SYSTEMS UK LTD | B134: 58871 | D134: N | E134: N | F134: TRUE | G134: GB | H134: N | I134: PRIVATE SECTOR | M134: CRAWLEY RH10 | N134: 26600 | O134: 26 | P134: Computer, electronic and optical products | Q134: 0.3817493877 | Z134: 8120263.68 | AA134: * | AC134: =VLOOKUP(A134,'[1]Update Sheet'!$A$3:$Y$15578,25,FALSE) -> 0 | AD134: Reportable
A135: CAE TECHNOLOGY SERVICES | B135: 34345 | D135: N | E135: N | F135: TRUE | G135: GB | H135: N | I135: PRIVATE SECTOR | J135: WD24 4PT | M135: WATFORD WD24 | N135: 62090 | O135: 62 | P135: Computer programming, consultancy and related services | Q135: 0.131446597 | R135: 2022 | S135: 25000 | T135: 4500 | U135: 171900 | V135: =SUM(S135:U135) -> 201400 | W135: 174849655 | X135: =V135/W135 -> 0.001151846711 | Y135: Turnover estimated via pomanda | Z135: 7949966.46 | AA135: * | AC135: =VLOOKUP(A135,'[1]Update Sheet'!$A$3:$Y$15578,25,FALSE) -> In Master List | AD135: Reportable
A136: SRCL LTD | B136: 23419 | D136: N | E136: N | F136: TRUE | G136: GB | H136: N | I136: PRIVATE SECTOR | J136: LS10 2LF | M136: LEEDS LS10 | N136: 82990 | O136: 82 | P136: Office administrative, office support and other business support services | Q136: 0.118050436 | Y136: Utilities or Waste provider- scope 1 duplicates other NHS reporting remove | Z136: 7836798.31 | AA136: * | AC136: =VLOOKUP(A136,'[1]Update Sheet'!$A$3:$Y$15578,25,FALSE) -> Do not include in master list- EFPMS | AD136: Exclude- Captured under Waste, Energy, Water or Invesments
A137: HIGHFIELD PENDINE PARK NURSING | B137: 10134 | C137: 1 | D137: Y | E137: Y | F137: TRUE | G137: GB | H137: N | I137: PRIVATE SECTOR | J137: LL55 2YU | K137: North Wales | L137: Betsi Cadwaladr UHB | M137: BRYN SEIONT | N137: 87100 | O137: 87 | P137: Residential care services | Q137: 0.1651443706 | Z137: 7802317.59 | AA137: * | AC137: =VLOOKUP(A137,'[1]Update Sheet'!$A$3:$Y$15578,25,FALSE) -> 0 | AD137: Reportable
A138: DIRECT NURSING SERVICES LTD | B138: 11734 | C138: 1 | D138: Y | E138: Y | F138: TRUE | G138: GB | H138: N | I138: PRIVATE SECTOR | J138: SA10 6ER | K138: South West Wales | L138: Swansea Bay UHB | M138: NEATH SA10 | N138: 86210 | O138: 86 | P138: Human health services | Q138: 0.2919316862 | Z138: 7776179.21 | AA138: * | AC138: =VLOOKUP(A138,'[1]Update Sheet'!$A$3:$Y$15578,25,FALSE) -> 0 | AD138: Reportable
A139: PURE HEALTHCARE GROUP LTD | B139: 70053 | D139: N | E139: N | F139: TRUE | G139: GB | H139: N | I139: PRIVATE SECTOR | J139: EC2M 7EA | M139: LONDON EC2M | N139: 78109 | O139: 78 | P139: Employment services | Q139: 0.1176282196 | Z139: 7716600.78 | AA139: * | AC139: =VLOOKUP(A139,'[1]Update Sheet'!$A$3:$Y$15578,25,FALSE) -> 0 | AD139: Reportable
A140: BECTON DICKINSON (UK) LTD | B140: 42 | D140: N | E140: N | F140: TRUE | G140: GB | H140: Y | I140: PRIVATE SECTOR | J140: RG41 5TS | M140: PHARMACY | N140: 82990 | O140: 82 | P140: Office administrative, office support and other business support services | Q140: 0.118050436 | R140: 2021 | S140: 551000 | T140: 90000 | U140: 12160000 | V140: 12801000 | W140: 488939000 | X140: 0.02618118007 | Z140: 7654911.44 | AA140: * | AC140: =VLOOKUP(A140,'[1]Update Sheet'!$A$3:$Y$15578,25,FALSE) -> In Master List | AD140: Reportable
A141: GORGEMEAD LTD | B141: 68495 | D141: N | E141: N | F141: TRUE | G141: GB | H141: Y | I141: PRIVATE SECTOR | M141: PCS PAY | N141: 96090 | O141: 96 | P141: Other personal services | Q141: 0.07671279196 | Z141: 7499230.19 | AA141: * | AC141: =VLOOKUP(A141,'[1]Update Sheet'!$A$3:$Y$15578,25,FALSE) -> 0 | AD141: Reportable
A142: ABBOTT MEDICAL UK LTD | B142: 1662 | D142: N | E142: N | F142: TRUE | G142: GB | H142: N | I142: PRIVATE SECTOR | J142: B90 8AJ | M142: STRATFORD CV37 | N142: 86900 | O142: 86 | P142: Human health services | Q142: 0.2919316862 | R142: 2022 | S142: 307000 | T142: 35000 | U142: 2801000 | V142: 3143000 | W142: 160976000 | X142: 0.01952464964 | Z142: 7445590.12 | AA142: * | AC142: =VLOOKUP(A142,'[1]Update Sheet'!$A$3:$Y$15578,25,FALSE) -> In Master List | AD142: Reportable
A143: CYGNET BEHAVIOURAL HEALTH LTD | B143: 27095 | D143: N | E143: N | F143: TRUE | G143: GB | H143: N | I143: PRIVATE SECTOR | J143: TN15 7RS | M143: LONDON W6 | N143: 86101 | O143: 86 | P143: Human health services | Q143: 0.2919316862 | R143: 2020 | S143: 8499000 | T143: 3444000 | U143: 38874000 | V143: 50817000 | W143: =456.3*1000000 -> 456300000 | X143: =V143/W143 -> 0.1113675214 | Z143: 7370507.3 | AA143: * | AC143: =VLOOKUP(A143,'[1]Update Sheet'!$A$3:$Y$15578,25,FALSE) -> In Master List | AD143: Reportable
A144: KAINOS SOFTWARE LTD | B144: 43984 | D144: N | E144: N | F144: TRUE | G144: GB | H144: N | I144: PRIVATE SECTOR | J144: BT7 1NT | M144: BELFAST BT7 | N144: 62012 | O144: 62 | P144: Computer programming, consultancy and related services | Q144: 0.131446597 | R144: 2023 | S144: =77*1000 -> 77000 | T144: =25*1000 -> 25000 | U144: =2620.2*1000 -> 2620200 | V144: =SUM(S144:U144) -> 2722200 | W144: =209241*1000 -> 209241000 | X144: =V144/W144 -> 0.01300987856 | Y144: carbon reduction plan | Z144: 7290149.04 | AA144: * | AC144: =VLOOKUP(A144,'[1]Update Sheet'!$A$3:$Y$15578,25,FALSE) -> In Master List | AD144: Reportable
A145: ORBIS EDUCATION & CARE LTD | B145: 38325 | C145: 1 | D145: Y | E145: Y | F145: TRUE | G145: GB | H145: N | I145: PRIVATE SECTOR | J145: CF10 2EF | K145: South East Wales | L145: Cardiff and Vale UHB | M145: CARDIFF CF23 | N145: 87200 | O145: 87 | P145: Residential care services | Q145: 0.1651443706 | Z145: 7185772.25 | AA145: * | AC145: =VLOOKUP(A145,'[1]Update Sheet'!$A$3:$Y$15578,25,FALSE) -> 0 | AD145: Reportable
A146: EDWARDS LIFESCIENCES LTD | B146: 107 | D146: N | E146: N | F146: TRUE | G146: GB | H146: Y | I146: PRIVATE SECTOR | J146: RG14 2PZ | M146: PHARMACY | N146: 47749 | O146: 47 | P146: Retail trade services, except of motor vehicles and motorcycles | Q146: 0.1740428731 | R146: 2022 | S146: 126340 | T146: 0 | U146: 1242390 | V146: 1368730 | W146: 140371998 | X146: 0.009750733903 | Y146: https://www.edwards.com/sustainability/documents/2019-Metrics-at-a-glance1.pdf https://s3.eu-west-2.amazonaws.com/document-api-images-live.ch.gov.uk/docs/luuVPjnVKsEB-_jD7t34iHafilckSTtntpiZ9mCDfsI/application-pdf?X-Amz-Algorithm=AWS4-HMAC-SHA256&X-Amz-Credential=ASIAWRGBDBV3NI4TCGVZ%2F20240125%2Feu-west-2%2Fs3%2Faws4_request&X-Amz-Date=20240125T163314Z&X-Amz-Expires=60&X-Amz-Security-Token=IQoJb3JpZ2luX2VjENT%2F%2F%2F%2F%2F%2F%2F%2F%2F%2FwEaCWV1LXdlc3QtMiJHMEUCIQDApp5AwaJwKUEM%2F10VmRKxmXua5%2FibAIxl9yFVGyRcdgIgWlGxCO3z70gdDpWKuwB6W3yFUiO5PtgzVB5PcvPNjf0qxAUIjf%2F%2F%2F%2F%2F%2F%2F%2F%2F%2FARAEGgw0NDkyMjkwMzI4MjIiDMocO3CuERtQoAhrhiqYBaZXreRIQeZgnRbMRArZ6ZXrVoNuTXDJw76IUexGWeysnqlWUjq1kxRFrJ2j%2FOfk%2B8eyH55OoPTWDhk6KKXnzvN4OyI%2BLaMA6mnT7uuQxodTP%2BWSmfLFc0Hd0VHlbc80RviaIGnaDITsBykaoSvKw1%2BhaaKXXS%2FtB%2FFo%2FEdDLaF0vKry9YZPi0SR675o3eAGVgwCJzieQ5Vrber9jKdVNq80%2BHHTA0IZuBRL0UqxcF3d22jPvmuVzPoEDIBeAmbbemJX%2FrLEmtgYx4jPdrMJuooVrUoyXdCkhl5sZlCg1F2GpXo0yKy559AZ4srEDQlHj7bRq%2Bil0nfL6pS4l9wrxVyOEZ4LOKUcEWFSnQERwe1M5xzyP3%2BnF1mjliVXkNfuGA%2F0Kn%2F%2Ffbs0Q4fB%2BfFl3x4w%2B6tTbxHclxaVLvzIU9%2FTVVqQuj4vUy9G2ZamglpjMBa%2BHvZSQVOX62kBgVpxDLeio0GZ7Lx2YDB0it2GDd5yI2lbXdzn5%2FnkY8QRo4WMBR8iwJylt%2F86BSIO0TCqz1s3FSjj2JdXcGf3ZuC1kMqxxfR%2BOXAdtfOfT31rE0Mg%2F3BX7BBPY0DenfkaOnuBtc1iD5RBOngNoAIZ%2FiM%2BOCPLJTp7cT2zoL%2Bcru00kc6u16KZakGkZw8c7wa7nq4VU0W727Y9IlNFUVLdtzzVnfi%2BqJeIyLChYfyya%2FhwR4PIvwJCR41036Sg53EaGx3Oi24lp4IGoQlnOesZrYIlyOT8Wn59cxyTeDrhGCvJhtBssDs1EXzaYYrZXo1oc8Sm%2BDw6OHp5hcVA7uE00URIPG%2FrHRQf504cXOw5sDdhEd5yQdj5eYpCHHgStfDxKVyk0rNnFY8e2KzxAgF%2BZM3mkVyF3Z81fMQAsScwrpzJrQY6sQHWrvPeo5kbbscTt%2Bg17eP4rJqzhPsOnocfs0UrLjji0tk6mRwbgYnwDSZxYlH6E07YBiAXyz9rIqrwik94GNgbyu7PFx2ShSDROXfgXmpxtGypy4gDdk6R%2F%2BFvgi%2BhtvX6xTMkLDffOc0yYdKxHQWAqmB%2BM%2BgPGPQUukrvaLe1URrRbx5Y5QCV6zdYfUDmCHsQGkz%2FyY%2BGGrNxHcbZrETJUaMPvVXIHIRweh8z%2BsbNNjw%3D&X-Amz-SignedHeaders=host&response-content-disposition=inline%3Bfilename%3D%22companies_house_document.pdf%22&X-Amz-Signature=0781e7c13c94f74ccedbb6d5ecc2e137261cf761a1ad2dc8a9d016edad99e1f3 | Z146: 7167779.37 | AA146: * | AC146: =VLOOKUP(A146,'[1]Update Sheet'!$A$3:$Y$15578,25,FALSE) -> In Master List | AD146: Reportable
A147: T RICHARD JONES BETWS LTD | B147: 15230 | C147: 1 | D147: Y | E147: Y | F147: TRUE | G147: GB | H147: Y | I147: PRIVATE SECTOR | J147: SA18 2LS | K147: South West Wales | L147: Hywel Dda UHB | M147: AMMANFORD SA18 | N147: 41201 | O147: 41.2 | P147: Buildings and building construction works | Q147: 0.3050063626 | Z147: 7131512.74 | AA147: * | AC147: =VLOOKUP(A147,'[1]Update Sheet'!$A$3:$Y$15578,25,FALSE) -> 0 | AD147: Reportable
A148: WELSH WATER | B148: 624 | C148: 1 | D148: Y | E148: Y | F148: TRUE | G148: GB | H148: N | I148: VCSE | K148: South East Wales | L148: Cardiff and Vale UHB | M148: CARDIFF CF3 | N148: 74990 | O148: 74 | P148: Other professional, scientific and technical services | Q148: 0.191425877 | Z148: 7056068.62 | AA148: * | AC148: =VLOOKUP(A148,'[1]Update Sheet'!$A$3:$Y$15578,25,FALSE) -> Do not include in master list- EFPMS | AD148: Exclude- Captured under Waste, Energy, Water or Invesments
A149: ARJO UK LTD | B149: 25 | D149: N | E149: N | F149: TRUE | G149: GB | H149: N | I149: PRIVATE SECTOR | J149: LU5 5XF | M149: PHARMACY | N149: 32500 | O149: 32 | P149: Other manufactured goods | Q149: 0.6723824941 | R149: 2022 | S149: 10161000 | T149: 477380 | U149: 17484200 | V149: 28122841 | W149: 86260000 | X149: 0.3260241247 | Z149: 7052090.83 | AA149: * | AC149: =VLOOKUP(A149,'[1]Update Sheet'!$A$3:$Y$15578,25,FALSE) -> In Master List | AD149: Reportable
A150: SACYR UK LTD | B150: 76080 | D150: N | E150: N | F150: TRUE | G150: GB | H150: N | I150: PRIVATE SECTOR | J150: W6 0NB | M150: LONDON W6 | N150: 41201 | O150: 42.1-2 | P150: Constructions and construction works for civil engineering | Q150: 0.3880224633 | R150: 2023 | S150: =87540.03*1000 -> 87540030 | T150: =259841.3*1000 -> 259841300 | U150: =1682394.79*1000 -> 1682394790 | V150: =SUM(S150:U150) -> 2029776120 | W150: =(4609*1000000000)*0.85 -> 3917650000000 | X150: =V150/W150 -> 0.0005181106326 | Z150: 7009491.07 | AA150: * | AC150: =VLOOKUP(A150,'[1]Update Sheet'!$A$3:$Y$15578,25,FALSE) -> In Master List | AD150: Reportable
A151: LIBERTY CARE LTD | B151: 39276 | C151: 1 | D151: Y | E151: Y | F151: TRUE | G151: GB | H151: Y | I151: PRIVATE SECTOR | J151: NP12 2JY | K151: South East Wales | L151: Aneurin Bevan UHB | M151: BLACKWOOD NP12 | N151: 86900 | O151: 86 | P151: Human health services | Q151: 0.2919316862 | Z151: 6992872.46 | AA151: * | AC151: =VLOOKUP(A151,'[1]Update Sheet'!$A$3:$Y$15578,25,FALSE) -> 0 | AD151: Reportable
A152: BLACKPOOL TEACHING HOSPITALS FOUNDATION TRUST | B152: 1390 | C152: 0 | G152: GB | H152: N | I152: PUBLIC SECTOR | J152: FY3 8NR | M152: BLACKPOOL FY3 | N152: 0 | O152: 0 | P152: 0 | Z152: 249198.71 | AA152: * | AC152: =VLOOKUP(A152,'[1]Update Sheet'!$A$3:$Y$15578,25,FALSE) -> Public Sector- Exclude | AD152: Exclude- Intra NHS
A153: ZIMMER BIOMET UK LTD | B153: 2214 | D153: N | E153: N | F153: TRUE | G153: GB | H153: N | I153: PRIVATE SECTOR | J153: SN5 6NX | M153: PHARMACY | N153: 46460 | O153: 46 | P153: Wholesale trade services, except of motor vehicles and motorcycles | Q153: 0.02031003151 | Z153: 6913599.09 | AA153: * | AC153: =VLOOKUP(A153,'[1]Update Sheet'!$A$3:$Y$15578,25,FALSE) -> 0 | AD153: Reportable
A154: BOLTON NHS FOUNDATION TRUST | B154: 53450 | C154: 0 | G154: GB | H154: N | I154: PUBLIC SECTOR | J154: BL4 0JR | M154: LANCASHIRE BL4 | Z154: 0 | AC154: =VLOOKUP(A154,'[1]Update Sheet'!$A$3:$Y$15578,25,FALSE) -> Public Sector- Exclude | AD154: Exclude- Intra NHS
A155: GILEAD SCIENCES LTD | B155: 128 | D155: N | E155: N | F155: TRUE | G155: GB | H155: N | I155: PRIVATE SECTOR | J155: CB21 6GT | M155: PHARMACY | N155: 46460 | O155: 46 | P155: Wholesale trade services, except of motor vehicles and motorcycles | Q155: 0.02031003151 | R155: 2022 | S155: 55459000 | T155: 57722000 | U155: 1037905000 | V155: 1151086000 | W155: 21421640000 | X155: 0.05373472806 | Y155: Global Emissions from ESG reprort | Z155: 6892982.66 | AA155: * | AC155: =VLOOKUP(A155,'[1]Update Sheet'!$A$3:$Y$15578,25,FALSE) -> Review as T2 higher than T1 | AD155: Reportable
A156: BOC LTD | B156: 54 | D156: N | E156: N | F156: TRUE | G156: GB | H156: N | I156: PRIVATE SECTOR | J156: S60 5NT | M156: PHARMACY | N156: 86900 | O156: 86 | P156: Human health services | Q156: 0.2919316862 | Z156: 6848197.23 | AA156: * | AC156: =VLOOKUP(A156,'[1]Update Sheet'!$A$3:$Y$15578,25,FALSE) -> 0 | AD156: Reportable
A157: AMGEN LTD | B157: 23 | D157: N | E157: N | F157: TRUE | G157: GB | H157: N | I157: PRIVATE SECTOR | J157: CB4 0WD | M157: PHARMACY | N157: 62020 | O157: 62 | P157: Computer programming, consultancy and related services | Q157: 0.131446597 | R157: 2022 | S157: 0 | T157: 0 | U157: 4385000 | V157: 4385000 | W157: 305203000 | X157: 0.01436748656 | Z157: 6798292.56 | AA157: * | AC157: =VLOOKUP(A157,'[1]Update Sheet'!$A$3:$Y$15578,25,FALSE) -> In Master List | AD157: Reportable
A158: BORDERS HEALTH BOARD | B158: 38577 | C158: 0 | G158: GB | H158: N | I158: PUBLIC SECTOR | J158: TD6 9DA | M158: MELROSE TD6 | N158: 0 | O158: 0 | P158: 0 | Z158: 22425.4 | AA158: * | AC158: =VLOOKUP(A158,'[1]Update Sheet'!$A$3:$Y$15578,25,FALSE) -> Public Sector- Exclude | AD158: Exclude- Intra NHS
A159: DAVIES CHEMISTS BRITON FERRY LTD | B159: 68126 | C159: 1 | D159: Y | E159: Y | F159: TRUE | G159: GB | H159: Y | I159: PRIVATE SECTOR | K159: Mid Wales | L159: Powys Teaching HB | M159: PCS PAY | N159: 47730 | O159: 47 | P159: Retail trade services, except of motor vehicles and motorcycles | Q159: 0.1740428731 | Z159: 6703626.86 | AA159: * | AC159: =VLOOKUP(A159,'[1]Update Sheet'!$A$3:$Y$15578,25,FALSE) -> 0 | AD159: Reportable
A160: XGENERIC ADHOC | B160: 44770 | C160: 1 | D160: Y | E160: Y | F160: TRUE | G160: GB | H160: N | I160: PRIVATE SECTOR | J160: CF5 1AB | K160: South East Wales | L160: Cardiff and Vale UHB | M160: FACTOR10028 | N160: 86101 | O160: 86 | P160: Human health services | Q160: 0.2919316862 | Z160: 6664130.4 | AA160: * | AC160: =VLOOKUP(A160,'[1]Update Sheet'!$A$3:$Y$15578,25,FALSE) -> 0 | AD160: Reportable
A161: CAMELLA HEALTHCARE LTD | B161: 68419 | C161: 1 | D161: Y | E161: Y | F161: TRUE | G161: GB | H161: Y | I161: PRIVATE SECTOR | J161: LL18 1LH | K161: North Wales | L161: Betsi Cadwaladr UHB | M161: PCS PAY | N161: 86900 | O161: 86 | P161: Human health services | Q161: 0.2919316862 | Z161: 6663053.05 | AA161: * | AC161: =VLOOKUP(A161,'[1]Update Sheet'!$A$3:$Y$15578,25,FALSE) -> 0 | AD161: Reportable
A162: H SHACKLETON & CO | B162: 12520 | C162: 1 | D162: Y | E162: Y | F162: TRUE | G162: GB | H162: N | I162: PRIVATE SECTOR | J162: NP7 5AA | K162: South East Wales | L162: Aneurin Bevan UHB | M162: PCS PAY | N162: 96090 | O162: 96 | P162: Other personal services | Q162: 0.07671279196 | Z162: 6639260.42 | AA162: * | AC162: =VLOOKUP(A162,'[1]Update Sheet'!$A$3:$Y$15578,25,FALSE) -> 0 | AD162: Reportable
A163: VALE OF GLAMORGAN COUNCIL | B163: 6309 | C163: 1 | D163: Y | E163: Y | F163: TRUE | G163: GB | H163: N | I163: PUBLIC SECTOR | J163: CF63 4RU | K163: South East Wales | L163: Cardiff and Vale UHB | M163: BARRY CF63 | N163: 84110 | O163: 84 | P163: Public administration and defence services; compulsory social security services | Q163: 0.1703405261 | Z163: 6634359.89 | AA163: * | AC163: =VLOOKUP(A163,'[1]Update Sheet'!$A$3:$Y$15578,25,FALSE) -> 0 | AD163: Reportable
A164: PARTNERSHIP OF CARE LTD | B164: 40660 | C164: 1 | D164: Y | E164: Y | F164: TRUE | G164: GB | H164: N | I164: PRIVATE SECTOR | J164: CF82 7DW | K164: South East Wales | L164: Aneurin Bevan UHB | M164: YSTRAD MY CF82 | N164: 55900 | O164: 55 | P164: Accommodation services | Q164: 0.324446027 | Z164: 6628037.75 | AA164: * | AC164: =VLOOKUP(A164,'[1]Update Sheet'!$A$3:$Y$15578,25,FALSE) -> 0 | AD164: Reportable
A165: RICHMOND NURSING AGENCY LTD | B165: 705 | C165: 1 | D165: Y | E165: Y | F165: TRUE | G165: GB | H165: Y | I165: PRIVATE SECTOR | J165: SA15 2DS | K165: South West Wales | L165: Hywel Dda UHB | M165: LLANELLI SA15 | N165: 86900 | O165: 86 | P165: Human health services | Q165: 0.2919316862 | Z165: 6587594.89 | AA165: * | AC165: =VLOOKUP(A165,'[1]Update Sheet'!$A$3:$Y$15578,25,FALSE) -> 0 | AD165: Reportable
A166: BARCHESTER HEALTHCARE | B166: 16146 | C166: 1 | D166: Y | E166: Y | F166: TRUE | G166: GB | H166: N | I166: PRIVATE SECTOR | J166: SA15 1HU | K166: South West Wales | L166: Hywel Dda UHB | M166: CARDIFF CF3 | N166: 70100 | O166: 70 | P166: Services of head offices; management consulting services | Q166: 0.09368118376 | Z166: 6514556.59 | AA166: * | AC166: =VLOOKUP(A166,'[1]Update Sheet'!$A$3:$Y$15578,25,FALSE) -> 0 | AD166: Reportable
A167: BRADFORD DISTRICT CARE TRUST | B167: 28957 | C167: 0 | G167: GB | H167: N | I167: PUBLIC SECTOR | J167: WF3 1WE | M167: SALTAIRE BD18 | N167: 0 | O167: 0 | P167: 0 | Z167: 0 | AC167: =VLOOKUP(A167,'[1]Update Sheet'!$A$3:$Y$15578,25,FALSE) ->  | AD167: Exclude- Intra NHS
A168: EURO COMMERCIALS (SOUTH WALES)LTD | B168: 2676 | C168: 1 | D168: Y | E168: Y | F168: TRUE | G168: GB | H168: N | I168: PRIVATE SECTOR | J168: CF23 9AQ | K168: South East Wales | L168: Cardiff and Vale UHB | M168: CARDIFF CF23 | N168: 45111 | O168: 45 | P168: Wholesale and retail trade and repair services of motor vehicles and motorcycles | Q168: 0.210346297 | Z168: 6331488.29 | AA168: * | AC168: =VLOOKUP(A168,'[1]Update Sheet'!$A$3:$Y$15578,25,FALSE) -> 0 | AD168: Reportable
A169: NIGEL WILLIAMS CHEMISTS LTD | B169: 68615 | C169: 1 | D169: Y | E169: Y | F169: TRUE | G169: GB | H169: Y | I169: PRIVATE SECTOR | K169: South West Wales | L169: Hywel Dda UHB | M169: PCS PAY | N169: 47730 | O169: 47 | P169: Retail trade services, except of motor vehicles and motorcycles | Q169: 0.1740428731 | Z169: 6293302.41 | AA169: * | AC169: =VLOOKUP(A169,'[1]Update Sheet'!$A$3:$Y$15578,25,FALSE) -> 0 | AD169: Reportable
A170: ZDUP PHARMACEUTICAL PACKAGING LEEDS | B170: 228 | D170: N | E170: N | F170: TRUE | G170: GB | H170: Y | I170: PRIVATE SECTOR | J170: LS1 5PS | N170: 18121 | O170: 18 | P170: Printing and recording services | Q170: 0.3817339611 | Z170: 932.26 | AA170: * | AC170: =VLOOKUP(A170,'[1]Update Sheet'!$A$3:$Y$15578,25,FALSE) -> 0 | AD170: Reportable
A171: ILLUMINA CAMBRIDGE LTD | B171: 49197 | D171: N | E171: N | F171: TRUE | G171: GB | H171: N | I171: PRIVATE SECTOR | J171: CB10 1XL | M171: SAFFRON W CB10 | N171: 72110 | O171: 72 | P171: Scientific research and development services | Q171: 0.18562765 | R171: 2019 | S171: 12489000 | T171: 21915000 | U171: 254507000 | V171: 288911000 | W171: 3543000000 | X171: 0.08154417161 | Y171: climate change report | Z171: 6090769.59 | AA171: * | AC171: =VLOOKUP(A171,'[1]Update Sheet'!$A$3:$Y$15578,25,FALSE) -> In Master List | AD171: Reportable
A172: WELCHEM LTD | B172: 68720 | C172: 1 | D172: Y | E172: Y | F172: TRUE | G172: GB | H172: Y | I172: PRIVATE SECTOR | K172: South West Wales | L172: Swansea Bay UHB | M172: PCS PAY | N172: 47730 | O172: 47 | P172: Retail trade services, except of motor vehicles and motorcycles | Q172: 0.1740428731 | Z172: 6015447.69 | AA172: * | AC172: =VLOOKUP(A172,'[1]Update Sheet'!$A$3:$Y$15578,25,FALSE) -> 0 | AD172: Reportable
A173: OCEAN COMMUNITY SERVICES LTD | B173: 29132 | C173: 1 | D173: Y | E173: Y | F173: TRUE | G173: GB | H173: N | I173: PRIVATE SECTOR | J173: CF3 0LT | K173: South East Wales | L173: Cardiff and Vale UHB | M173: CARDIFF CF3 | N173: 86900 | O173: 86 | P173: Human health services | Q173: 0.2919316862 | R173: 2023 | S173: 12421500 | T173: 1077500 | U173: 166307330 | V173: 179806330 | W173: 516944000 | X173: 0.3478255478 | Z173: 5995882.07 | AA173: * | AC173: =VLOOKUP(A173,'[1]Update Sheet'!$A$3:$Y$15578,25,FALSE) -> Review as T2 higher than T1 | AD173: Reportable
A174: SIEMENS HEALTHCARE LTD | B174: 44180 | D174: N | E174: N | F174: TRUE | G174: GB | H174: N | I174: PRIVATE SECTOR | J174: GU15 3YL | M174: MANCHESTE M20 | N174: 32500 | O174: 32 | P174: Other manufactured goods | Q174: 0.6723824941 | R174: 2022 | S174: 793700 | T174: 255900 | U174: 2372100 | V174: 3421800 | W174: 662968000 | X174: 0.005161335087 | Y174: on accounts and carbon reduction plan | Z174: 5914547.01 | AA174: * | AC174: =VLOOKUP(A174,'[1]Update Sheet'!$A$3:$Y$15578,25,FALSE) -> In Master List | AD174: Reportable
A175: GN HEARING UK LTD | B175: 2416 | D175: N | E175: N | F175: TRUE | G175: GB | H175: Y | I175: PRIVATE SECTOR | J175: OX26 4JT | M175: KIRTLINGT OX5 | N175: 46460 | O175: 46 | P175: Wholesale trade services, except of motor vehicles and motorcycles | Q175: 0.02031003151 | R175: 2021 | S175: 2002000 | T175: 11168000 | U175: 483064000 | V175: 496234000 | W175: 1735250000 | X175: 0.2859726264 | Y175: esg report | Z175: 5863556.3 | AA175: * | AC175: =VLOOKUP(A175,'[1]Update Sheet'!$A$3:$Y$15578,25,FALSE) -> Review as T2 higher than T1 | AD175: Reportable
A176: AIRWAVE SOLUTIONS LTD | B176: 32708 | D176: N | E176: N | F176: TRUE | G176: GB | H176: N | I176: PRIVATE SECTOR | J176: SL1 2EJ | M176: SLOUGH SL12 | N176: 61900 | O176: 61 | P176: Telecommunications services | Q176: 0.1052070319 | R176: 2022 | S176: 2239000 | T176: 3301000 | U176: 343000 | V176: 5883000 | W176: 463409000 | X176: 0.01269504908 | Z176: 5859950.04 | AA176: * | AC176: =VLOOKUP(A176,'[1]Update Sheet'!$A$3:$Y$15578,25,FALSE) -> In Master List | AD176: Reportable
A177: RESPOND HEALTHCARE LTD | B177: 65850 | D177: N | E177: N | F177: TRUE | G177: GB | H177: Y | I177: PRIVATE SECTOR | J177: BT23 5QY | M177: PCS PAY | N177: 46460 | O177: 46 | P177: Wholesale trade services, except of motor vehicles and motorcycles | Q177: 0.02031003151 | Z177: 5844620.82 | AA177: * | AC177: =VLOOKUP(A177,'[1]Update Sheet'!$A$3:$Y$15578,25,FALSE) -> 0 | AD177: Reportable
A178: FRESENIUS MEDICAL CARE RENAL SERVICES LTD | B178: 22722 | D178: N | E178: N | F178: TRUE | G178: GB | H178: Y | I178: PRIVATE SECTOR | J178: NG17 2HU | M178: SUTTON IN NG17 | N178: 86900 | O178: 86 | P178: Human health services | Q178: 0.2919316862 | Z178: 5752270.34 | AA178: * | AC178: =VLOOKUP(A178,'[1]Update Sheet'!$A$3:$Y$15578,25,FALSE) -> 0 | AD178: Reportable
A179: BRADFORD HOSPITAL NHS TRUST | B179: 23430 | C179: 0 | G179: GB | H179: N | I179: PUBLIC SECTOR | M179: WAKEFIELD WF3 | Z179: 2870.78 | AA179: * | AC179: =VLOOKUP(A179,'[1]Update Sheet'!$A$3:$Y$15578,25,FALSE) -> Public Sector- Exclude | AD179: Exclude- Intra NHS
A180: MENTAL HEALTH CARE (UK) LTD | B180: 14881 | D180: N | E180: N | F180: TRUE | G180: GB | H180: Y | I180: PRIVATE SECTOR | J180: DL1 1GY | M180: DARLINGTO DL1 | N180: 96090 | O180: 96 | P180: Other personal services | Q180: 0.07671279196 | Z180: 5725618.79 | AA180: * | AC180: =VLOOKUP(A180,'[1]Update Sheet'!$A$3:$Y$15578,25,FALSE) -> 0 | AD180: Reportable
A181: WM MORRISON SUPERMARKET | B181: 50590 | C181: 1 | D181: Y | E181: Y | F181: TRUE | G181: GB | H181: N | I181: PRIVATE SECTOR | K181: Various | L181: Various | M181: PCS PAY | N181: 47110 | O181: 47 | P181: Retail trade services, except of motor vehicles and motorcycles | Q181: 0.1740428731 | Z181: 5710103.67 | AA181: * | AC181: =VLOOKUP(A181,'[1]Update Sheet'!$A$3:$Y$15578,25,FALSE) -> 0 | AD181: Reportable
A182: WALTERS UK LTD | B182: 58081 | C182: 1 | D182: Y | E182: Y | F182: TRUE | G182: GB | H182: N | I182: PRIVATE SECTOR | J182: CF44 9UL | K182: South East Wales | L182: Cwm Taf Morgannwg UHB | M182: ABERDARE CF44 | N182: 41201 | O182: 41.2 | P182: Buildings and building construction works | Q182: 0.3050063626 | R182: 2020 | S182: 6556000 | T182: 98000 | U182: 85000 | V182: 6739000 | W182: 38910000 | X182: 0.1731945515 | Z182: 5707741.85 | AA182: * | AC182: =VLOOKUP(A182,'[1]Update Sheet'!$A$3:$Y$15578,25,FALSE) -> In Master List | AD182: Reportable
A183: BRIDGEND JUNIOR DOCTORS MESS | B183: 11521 | C183: 1 | G183: GB | H183: N | I183: PUBLIC SECTOR | J183: CF31 1LT | M183: BRIDGEND CF31 | Z183: 270 | AA183: * | AC183: =VLOOKUP(A183,'[1]Update Sheet'!$A$3:$Y$15578,25,FALSE) -> Public Sector- Exclude | AD183: ?
A184: IMC ST DAVIDS LTD | B184: 8151 | D184: N | E184: N | F184: TRUE | G184: GB | H184: Y | I184: PRIVATE SECTOR | J184: BA2 3RH | M184: BRISTOL BS1 | N184: 86102 | O184: 86 | P184: Human health services | Q184: 0.2919316862 | Z184: 5671506.71 | AA184: * | AC184: =VLOOKUP(A184,'[1]Update Sheet'!$A$3:$Y$15578,25,FALSE) -> 0 | AD184: Reportable
A185: BRIDGEND NHS CREDIT UNION | B185: 11524 | C185: 1 | G185: GB | H185: N | I185: PUBLIC SECTOR | J185: CF32 9SW | M185: SARN CF32 | Z185: 603788.57 | AA185: * | AC185: =VLOOKUP(A185,'[1]Update Sheet'!$A$3:$Y$15578,25,FALSE) -> Public Sector- Exclude | AD185: ?
A186: LLANHARAN PHARMACY LTD | B186: 68531 | C186: 1 | D186: Y | E186: Y | F186: TRUE | G186: GB | H186: Y | I186: PRIVATE SECTOR | J186: CF72 9NR | K186: South East Wales | L186: Cwm Taf Morgannwg UHB | M186: PCS PAY | N186: 86900 | O186: 86 | P186: Human health services | Q186: 0.2919316862 | Z186: 5605379.19 | AA186: * | AC186: =VLOOKUP(A186,'[1]Update Sheet'!$A$3:$Y$15578,25,FALSE) -> 0 | AD186: Reportable
A187: ASDA STORES LTD | B187: 1293 | C187: 1 | D187: Y | E187: Y | F187: TRUE | G187: GB | H187: N | I187: PRIVATE SECTOR | K187: Various | L187: Various | M187: PCS PAY | N187: 96090 | O187: 96 | P187: Other personal services | Q187: 0.07671279196 | Z187: 5469217.6 | AA187: * | AC187: =VLOOKUP(A187,'[1]Update Sheet'!$A$3:$Y$15578,25,FALSE) -> 0 | AD187: Reportable
A188: LORNE STEWART PLC | B188: 1678 | C188: 1 | D188: Y | E188: Y | F188: TRUE | G188: GB | H188: N | I188: PRIVATE SECTOR | J188: CF15 7NE | K188: South East Wales | L188: Cardiff and Vale UHB | M188: CARDIFF CF15 | N188: 43210 | O188: 42.99 | P188: Specialised construction works | Q188: 0.3102678663 | Z188: 5417121.91 | AA188: * | AC188: =VLOOKUP(A188,'[1]Update Sheet'!$A$3:$Y$15578,25,FALSE) -> 0 | AD188: Reportable
A189: LEWIS CONSTRUCTION BUILDING CONTRACTORS WALES LTD | B189: 37509 | C189: 1 | D189: Y | E189: Y | F189: TRUE | G189: GB | H189: Y | I189: PRIVATE SECTOR | J189: SA14 9UU | K189: South West Wales | L189: Hywel Dda UHB | M189: LLANELLI SA14 | N189: 42990 | O189: 42.99 | P189: Specialised construction works | Q189: 0.3102678663 | Z189: 5391466.59 | AA189: * | AC189: =VLOOKUP(A189,'[1]Update Sheet'!$A$3:$Y$15578,25,FALSE) -> 0 | AD189: Reportable
A190: CARDIFF METROPOLITAN UNIVERSITY (UWIC) | B190: 1971 | C190: 1 | D190: Y | E190: Y | F190: TRUE | G190: GB | H190: N | I190: PUBLIC SECTOR | J190: CF5 2SG | K190: South East Wales | L190: Cardiff and Vale UHB | M190: CARDIFF CF5 | N190: 85421 | O190: 85 | P190: Education services | Q190: 0.1025796668 | Z190: 5291488.36 | AA190: * | AC190: =VLOOKUP(A190,'[1]Update Sheet'!$A$3:$Y$15578,25,FALSE) -> 0 | AD190: Reportable
A191: BRIDGEWATER COMMUNITY HEALTHCARE NHS TRUST | B191: 45186 | C191: 0 | G191: GB | H191: N | I191: PUBLIC SECTOR | M191: WAKEFIELD WF3 | Z191: 0 | AC191: =VLOOKUP(A191,'[1]Update Sheet'!$A$3:$Y$15578,25,FALSE) -> Public Sector- Exclude | AD191: Exclude- Intra NHS
A192: DEXCOM INTERNATIONAL LTD | B192: 67707 | D192: N | E192: N | F192: TRUE | G192: GB | H192: N | I192: PRIVATE SECTOR | J192: EH3 5DA | M192: EDINBURGH EH3 | N192: 74990 | O192: 74 | P192: Other professional, scientific and technical services | Q192: 0.191425877 | Z192: 5162816.48 | AA192: * | AC192: =VLOOKUP(A192,'[1]Update Sheet'!$A$3:$Y$15578,25,FALSE) -> 0 | AD192: Reportable
A193: BUCKINGHAM HEALTHCARE NHS TRUST | B193: 20906 | C193: 0 | G193: GB | H193: N | I193: PUBLIC SECTOR | J193: HP7 0JD | M193: AMERSHAM HP7 | Z193: 54751 | AA193: * | AC193: =VLOOKUP(A193,'[1]Update Sheet'!$A$3:$Y$15578,25,FALSE) -> Public Sector- Exclude | AD193: Exclude- Intra NHS
A194: MARIE CURIE CANCER CARE | B194: 8103 | D194: N | E194: N | F194: TRUE | G194: GB | H194: N | I194: VCSE | J194: SW11 7BW | M194: LONDON SW11 | N194: 63990 | O194: 63 | P194: Information services | Q194: 0.1693416988 | Z194: 5104516.7 | AA194: * | AC194: =VLOOKUP(A194,'[1]Update Sheet'!$A$3:$Y$15578,25,FALSE) -> 0 | AD194: Reportable
A195: HAFOD HOUSING ASSOCIATION LTD | B195: 34823 | C195: 1 | D195: Y | E195: Y | F195: TRUE | G195: GB | H195: N | I195: VCSE | J195: CF83 2AX | K195: South East Wales | L195: Aneurin Bevan UHB | M195: CARDIFF CF5 | N195: 68201 | O195: 68.2IMP | P195: Owner-Occupiers' Housing Services | Q195: 0.03962136813 | Z195: 5077170 | AA195: * | AC195: =VLOOKUP(A195,'[1]Update Sheet'!$A$3:$Y$15578,25,FALSE) -> 0 | AD195: Reportable
A196: HEATHERWOOD COURT LTD | B196: 39129 | C196: 1 | D196: Y | E196: Y | F196: TRUE | G196: GB | H196: Y | I196: PRIVATE SECTOR | J196: CF3 0LT | K196: South East Wales | L196: Cardiff and Vale UHB | M196: CARDIFF CF3 | N196: 86101 | O196: 86 | P196: Human health services | Q196: 0.2919316862 | Z196: 5051480.8 | AA196: * | AC196: =VLOOKUP(A196,'[1]Update Sheet'!$A$3:$Y$15578,25,FALSE) -> 0 | AD196: Reportable
A197: PEN Y BONT COURT LTD | B197: 34815 | C197: 1 | D197: Y | E197: Y | F197: TRUE | G197: GB | H197: Y | I197: PRIVATE SECTOR | J197: SA7 9LA | K197: South West Wales | L197: Swansea Bay UHB | M197: SWANSEA SA7 | N197: 87200 | O197: 87 | P197: Residential care services | Q197: 0.1651443706 | Z197: 5047507.78 | AA197: * | AC197: =VLOOKUP(A197,'[1]Update Sheet'!$A$3:$Y$15578,25,FALSE) -> 0 | AD197: Reportable
A198: COMPUTACENTER (UK) LTD | B198: 11311 | D198: N | E198: N | F198: TRUE | G198: GB | H198: N | I198: PRIVATE SECTOR | J198: SE1 8HL | M198: HATFIELD AL10 | N198: 62020 | O198: 62 | P198: Computer programming, consultancy and related services | Q198: 0.131446597 | R198: 2020 | S198: 1249000 | T198: 4538000 | U198: 3830000 | V198: 9617000 | W198: 1759790000 | X198: 0.005464856602 | Y198: carbon reduction plan | Z198: 5031293.3 | AA198: * | AC198: =VLOOKUP(A198,'[1]Update Sheet'!$A$3:$Y$15578,25,FALSE) -> In Master List | AD198: Reportable
A199: BLAENAU GWENT COUNTY BOROUGH COUNCIL | B199: 6293 | C199: 1 | D199: Y | E199: Y | F199: TRUE | G199: GB | H199: N | I199: PUBLIC SECTOR | K199: South East Wales | L199: Aneurin Bevan UHB | M199: EBBW VALE NP23 | N199: 84110 | O199: 84 | P199: Public administration and defence services; compulsory social security services | Q199: 0.1703405261 | Z199: 4988054.22 | AA199: * | AC199: =VLOOKUP(A199,'[1]Update Sheet'!$A$3:$Y$15578,25,FALSE) -> 0 | AD199: Reportable
A200: NEWHALL JANITORIAL | B200: 6198 | C200: 1 | D200: Y | E200: Y | F200: TRUE | G200: GB | H200: Y | I200: PRIVATE SECTOR | J200: CF11 8BS | K200: South East Wales | L200: Cardiff and Vale UHB | M200: PHARMACY | N200: 46760 | O200: 46 | P200: Wholesale trade services, except of motor vehicles and motorcycles | Q200: 0.02031003151 | Z200: 4973507.26 | AA200: * | AC200: =VLOOKUP(A200,'[1]Update Sheet'!$A$3:$Y$15578,25,FALSE) -> 0 | AD200: Reportable
... 2050 more rows
